Workbook

Sheet Plano
A1: CÓDIGO | B1: DESCRIÇÃO | C1: 2013 | D1: =C1+1 -> 2014 | E1: =D1+1 -> 2015 | F1: =E1+1 -> 2016
C2: Arrecadado | D2: Arrecadado | E2: Arrecadado | F2: Reestimado
A3: 1.0.0.0.00.00.00.00 | B3: RECEITAS CORRENTES | C3: =C4+C5+C8+C13+C14+C15+C16+C17 -> 17509131.36 | D3: =D4+D5+D8+D13+D14+D15+D16+D17 -> 19919077.13 | E3: =E4+E5+E8+E13+E14+E15+E16+E17 -> 20153956.95 | F3: =F4+F5+F8+F13+F14+F15+F16+F17 -> 21796200
A4: 1.1.0.0.00.00.00.00 | B4: RECEITA TRIBUTARIA | C4: 1030259.59 | D4: 1159615.77 | E4: 1240263.45 | F4: 1359000
A5: 1.2.0.0.00.00.00.00 | B5: RECEITA DE CONTRIBUICOES | C5: =C6+C7 -> 492452.81 | D5: =D6+D7 -> 554692.61 | E5: =E6+E7 -> 631442.44 | F5: =F6+F7 -> 680000
A6: 1.2.0.0.00.00.00.00 | B6: Receitas de Contribuições - P M | C6: 105048.49 | D6: 115744.45 | E6: 165189.77 | F6: 180000
A7: 1.2.0.0.0.0.0.0.0.0.0 | B7: Receita de Contribuições - R P P S | C7: 387404.32 | D7: 438948.16 | E7: 466252.67 | F7: 500000
A8: 1.3.0.0.00.00.00.00 | B8: RECEITA PATRIMONIAL | C8: =C9+C12 -> 537867.23 | D8: =D9+D12 -> 1560100.69 | E8: =E9+E12 -> 1288660.93 | F8: =F9+F12 -> 950400
A9: 1.3.2.0.00.00.00.00 | B9: Rendimentos de Aplicações Financeiras | C9: =C10+C11 -> 537867.23 | D9: =D10+D11 -> 1560100.69 | E9: =E10+E11 -> 1287675.41 | F9: =F10+F11 -> 949400
A10: 1.3.2.0.00.00.00.00 | B10: Rendimentos de Aplicações - PM | C10: 33066.4 | D10: 138715.45 | E10: 78511.21 | F10: 49400
A11: 1.3.2.0.00.00.00.00 | B11: Rendimentos de Aplicações - RPPS | C11: 504800.83 | D11: 1421385.24 | E11: 1209164.2 | F11: 900000
A12: 1.3.9.0.00.00.00.00 | B12: Outras Receitas Patrimoniais | E12: 985.52 | F12: 1000
A13: 1.4.0.0.00.00.00.00 | B13: RECEITA AGROPECUARIA
A14: 1.5.0.0.00.00.00.00 | B14: RECEITA INDUSTRIAL
A15: 1.6.0.0.00.00.00.00 | B15: RECEITA DE SERVICOS | C15: 302734.04 | D15: 465242.31 | E15: 463558.81 | F15: 530000
A16: 1.7.0.0.00.00.00.00 | B16: TRANSFERENCIAS CORRENTES | C16: 14987703.15 | D16: 15824970.39 | E16: 16348632.51 | F16: 18086000
A17: 1.9.0.0.00.00.00.00 | B17: OUTRAS RECEITAS CORRENTES | C17: =C18+C19 -> 158114.54 | D17: =D18+D19 -> 354455.36 | E17: =E18+E19 -> 181398.81 | F17: =F18+F19 -> 190800
A18: 1.9.0.0.00.00.00.00 | B18: Outras Receitas Correntes - P M | C18: 158114.54 | D18: 162691.1 | E18: 120956.14 | F18: 130800
A19: 1.9.0.0.00.00.00.00 | B19: Outras Receitas Correntes - R P P S | D19: 191764.26 | E19: 60442.67 | F19: 60000
A20: 2.0.0.0.00.00.00.00 | B20: RECEITAS DE CAPITAL | C20: =C21+C22+C23+C24+C25 -> 1605771.58 | D20: =D21+D22+D23+D24+D25 -> 1891348.56 | E20: =E21+E22+E23+E24+E25 -> 2062478.6 | F20: =F21+F22+F23+F24+F25 -> 1810000
A21: 2.1.0.0.00.00.00.00 | B21: OPERACOES DE CREDITO | F21: 560000
A22: 2.2.0.0.00.00.00.00 | B22: ALIENACAO DE BENS | D22: 218220 | E22: 73000 | F22: 100000
A23: 2.3.0.0.00.00.00.00 | B23: AMORTIZACAO DE EMPRESTIMOS
A24: 2.4.0.0.00.00.00.00 | B24: TRANSFERENCIAS DE CAPITAL | C24: 1605771.58 | D24: 1673128.56 | E24: 1989478.6 | F24: 1150000
A25: 2.5.0.0.00.00.00.00 | B25: OUTRAS RECEITAS DE CAPITAL
A26: 7.2.1.0.00.00.00.00 | B26: Receitas Intra Orçamentárias - RPPS | C26: 877002.32 | D26: 1053918.55 | E26: 1182049.22 | F26: 1300000
A27: 9.0.0.0.00.00.00.00 | B27: ( - ) DEDUÇÕES DA RECEITA | C27: -3944135.34 | D27: -2806681.84 | E27: -2921854.99 | F27: -2766200
B29: TOTAL DA RECEITA | C29: =C3+C20+C26+C27 -> 16047769.92 | D29: =D3+D20+D26+D27 -> 20057662.4 | E29: =E3+E20+E26+E27 -> 20476629.78 | F29: =F3+F20+F26+F27 -> 22140000
A31: CÓDIGO | B31: DESCRIÇÃO | C31: 2013 | D31: =C31+1 -> 2014 | E31: =D31+1 -> 2015 | F31: =E31+1 -> 2016
C32: Liquidado | D32: Liquidado | E32: Liquidado | F32: Reestimado
A33: 3.0.00.00.00.00.00 | B33: DESPESAS CORRENTES | C33: =C34+C37+C40 -> 13190424.93 | D33: =D34+D37+D40 -> 15247148.95 | E33: =E34+E37+E40 -> 16026185.6 | F33: =F34+F37+F40 -> 18089000
A34: 3.1.00.00.00.00.00 | B34: PESSOAL E ENCARGOS SOCIAIS | C34: =C35+C36 -> 6312865.63 | D34: =D35+D36 -> 7484629.53 | E34: =E35+E36 -> 7505879.24 | F34: =F35+F36 -> 8346000
A35: 3.1.00.00.00.00.00 | B35: Pessoal Próprio | C35: 6312865.63 | D35: 7484629.53 | E35: 7505879.24 | F35: 8326000
A36: 3.1.00.00.00.00.00 | B36: Pessoal do R P P S | F36: 20000
A37: 3.2.00.00.00.00.00 | B37: JUROS E ENCARGOS DA DÍVIDA | C37: =C38+C39 -> 181306.56 | D37: =D38+D39 -> 104020.53 | E37: =E38+E39 -> 48779.41 | F37: =F38+F39 -> 100000
A38: 3.2.00.00.00.00.00 | B38: Juros e Encargos da Dívida | C38: 181306.56 | D38: 104020.53 | E38: 48779.41 | F38: 100000
A39: 3.2.00.00.00.00.00 | B39: Juros e encargos da Dívida RPPS
A40: 3.3.00.00.00.00.00 | B40: OUTRAS DESPESAS CORRENTES | C40: =C41+C42 -> 6696252.74 | D40: =D41+D42 -> 7658498.89 | E40: =E41+E42 -> 8471526.95 | F40: =F41+F42 -> 9643000
A41: 3.3.00.00.00.00.00 | B41: Outras Despesas Correntes | C41: 5770144.79 | D41: 6558559.86 | E41: 7044944.35 | F41: 8028000
A42: 3.3.00.00.00.00.00 | B42: Outras Despesas Corrente RPPS | C42: 926107.95 | D42: 1099939.03 | E42: 1426582.6 | F42: 1615000
A43: 4.0.00.00.00.00.00 | B43: DESPESAS DE CAPITAL | C43: =C44+C47+C50 -> 1855835.97 | D43: =D44+D47+D50 -> 2994994.55 | E43: =E44+E47+E50 -> 4201189.75 | F43: =F44+F47+F50 -> 3121000
A44: 4.4.00.00.00.00.00 | B44: INVESTIMENTOS | C44: =C45+C46 -> 1001672.72 | D44: =D45+D46 -> 1799284.05 | E44: =E45+E46 -> 3136625.33 | F44: =F45+F46 -> 2420000
A45: 4.4.00.00.00.00.00 | B45: Invetimentos | C45: 1001672.72 | D45: 1799284.05 | E45: 3136625.33 | F45: 2420000
A46: 4.4.00.00.00.00.00 | B46: Invetimentos RPPS
A47: 4.5.00.00.00.00.00 | B47: INVERSÕES FINANCEIRAS | C47: =C48+C49 -> 49527.13 | D47: =D48+D49 -> 223392.03 | E47: =E48+E49 -> 173424.12 | F47: =F48+F49 -> 25000
A48: 4.5.90.66.00.00.00 | B48: Concessão de Empréstimos e Financiamentos
A49: 4.5.90.99.00.00.00 | B49: Outras inversões Financeiras | C49: 49527.13 | D49: 223392.03 | E49: 173424.12 | F49: 25000
A50: 4.6.00.00.00.00.00 | B50: AMORTIZAÇÃO DA DÍVIDA PÚBLICA | C50: 804636.12 | D50: 972318.47 | E50: 891140.3 | F50: 676000
A52: 9.9.99.99.99.99.01 | B52: RESERVA DE CONTINGÊNCIA | F52: 5000
A53: 9.9.99.99.99.99.02 | B53: RESERVA DE CONTINGÊNCIA DO RPPS | F53: 925000
B55: TOTAL DA DESPESA | C55: =C33+C43 -> 15046260.9 | D55: =D33+D43 -> 18242143.5 | E55: =E33+E43 -> 20227375.35 | F55: =F33+F43+F52+F53 -> 22140000
B57: PREVISÕES DA LEI DE ORÇAMENTO | C57: 2013 | D57: =C57+1 -> 2014 | E57: =D57+1 -> 2015 | F57: =E57+1 -> 2016
B58: Receita Prevista (já deduzido o FUNDEB) | C58: 16500000 | D58: 20750000 | E58: 24835000 | F58: 22140000
B59: Rendimento de Aplicações Financeiras | C59: 756200 | D59: 660600 | E59: 867800 | F59: 950400
B60: Receita de Operações de Crédito | C60: 5000 | D60: 10000 | E60: 1000000 | F60: 500000
B61: Receita de Alienação de Bens | D61: 100000 | E61: 150000 | F61: 100000
B62: Receita de Amort.de Empréstimos Concedidos
B63: Despesa Fixada (cfe lei de orçamento) | C63: =C58 -> 16500000 | D63: =D58 -> 20750000 | E63: =E58 -> 24835000 | F63: =F58 -> 22140000
B64: Juros e Encargos da Dívida | C64: 200000 | D64: 170000 | E64: 100000 | F64: 100000
B65: Amortização da Dívida | C65: 750000 | D65: 900000 | E65: 853000 | F65: 676000
B66: Concessão de Empréstimos

Sheet Dívida
A1: =Parâmetros!A7 -> Município de : Paverama
A2: LEI DE DIRETRIZES ORÇAMENTÁRIAS PARA 2017
A3: TABELA 02 - Demonstraitvo da Evolução da Dívida e Resultado Nominal
A5: Exercício | B5: 2014 | C5: =B5+1 -> 2015 | D5: =C5+1 -> 2016 | E5: =D5+1 -> 2017 | F5: =E5+1 -> 2018 | G5: =F5+1 -> 2019
B6: Saldo | C6: Saldo | D6: Reestimativa | E6: Previsão | F6: Previsão | G6: Previsão
A7: (1) Dívida Consolidada | B7: 555053.12 | C7: 189610 | D7: 744000 | E7: 525000 | F7: 1050000 | G7: 700000
A8: (2) Disponibilidades Financeiras (Líquidas) | B8: 1484372.53 | C8: 1710910.02 | D8: 1200000 | E8: =(B8+C8+D8)/3 -> 1465094.183 | F8: =(C8+D8+E8)/3 -> 1458668.068 | G8: =(D8+E8+F8)/3 -> 1374587.417
A9: (3) Dívida Consolidada Líquida | B9: -929319.41 | C9: -1521300.02 | D9: -456000 | E9: =E7-E8 -> -940094.1833 | F9: =F7-F8 -> -408668.0678 | G9: =G7-G8 -> -674587.417
A10: (4) Passivos Reconhecidos
A11: (5) Dívida Fiscal Líquida | B11: =B9-B10 -> -929319.41 | C11: -1521300.02 | D11: -456000 | E11: -940094.1833 | F11: -408668.0678 | G11: -674587.417
A12: (6) Resultado Nominal | B12: -924823.07 | C12: -328564.23 | D12: -244520 | E12: =E11-D11 -> -484094.1833 | F12: =F11-E11 -> 531426.1156 | G12: =G11-F11 -> -265919.3493
A14: Cronograma Anual de Operações Realizadas e do Serviço da Dívida | G14: Valores em R$
A15: Operações de Crédito / Pagamentos | B15: 2014 | C15: =B15+1 -> 2015 | D15: =C15+1 -> 2016 | E15: =D15+1 -> 2017 | F15: =E15+1 -> 2018 | G15: =F15+1 -> 2019
B16: Realizado | C16: Realizado | D16: Reestimativa | E16: Previsão | F16: Previsão | G16: Previsão
A17: 2.1 - Operações de Crédito | B17: =Plano!D21 -> 0 | C17: =Plano!E21 -> 0 | D17: 700000 | F17: 700000
A18: 2.2 Encargos | B18: =Plano!D37 -> 104020.53 | C18: =Plano!E37 -> 48779.41 | D18: =Plano!F37 -> 100000 | E18: =Projeções!G44 -> 117985.413 | F18: =Projeções!H44 -> 136797.3282 | G18: =Projeções!I44 -> 157705.5467
A19: 2.3 Amortizações | B19: =Plano!D50 -> 972318.47 | C19: =Plano!E50 -> 891140.3 | D19: 450000 | E19: 175000 | F19: 350000 | G19: 350000
A20: 2.2.3 Dívida Mobiliária

Sheet Projeções
A1: =Parâmetros!A7 -> Município de : Paverama | B1: PAVERAMA
A2: MEMÓRIA DE CÁLCULO DAS RECEITAS E DESPESAS - LDO PARA 2016
I5: Valores em R$ 1,00
A6: CÓDIGOS | B6: CONTAS | C6: ARRECADADA | D6: ARRECADADA | E6: ARRECADADA | F6: REESTIMADO | G6: PROJETADO | H6: PROJETADO | I6: PROJETADO | J6: PROJETADO
B7: CONSOLIDADAS ANUAIS | C7: 2013 | D7: =C7+1 -> 2014 | E7: 2015 | F7: 2016 | G7: 2017 | H7: 2018 | I7: 2019 | J7: 2005
A9: 1.0.0.0.00.00.00.00 | B9: RECEITAS CORRENTES | C9: =Plano!C3 -> 17509131.36 | D9: =Plano!D3 -> 19919077.13 | E9: =Plano!E3 -> 20153956.95 | F9: =Plano!F3 -> 21796200 | G9: =IF(G23=0,"-",(G10+G11+G14+G19+G20+G21+G22+G23)) -> 24240643.79 | H9: =IF(H23=0,"-",(H10+H11+H14+H19+H20+H21+H22+H23)) -> 26312046.45 | I9: =IF(I23=0,"-",(I10+I11+I14+I19+I20+I21+I22+I23)) -> 28943353.32
A10: 1.1.0.0.00.00.00.00 | B10: RECEITA TRIBUTARIA | C10: =Plano!C4 -> 1030259.59 | D10: =Plano!D4 -> 1159615.77 | E10: =Plano!E4 -> 1240263.45 | F10: =Plano!F4 -> 1359000 | G10: 1704129.43 | H10: =IF(G10=0,"-",(G10*(1+Parâmetros!F11)*(1+Parâmetros!F12)*(1+Parâmetros!F15))) -> 1884891.609 | I10: =IF(H10=0,"-",(H10*(1+Parâmetros!G11)*(1+Parâmetros!G12)*(1+Parâmetros!G15))) -> 2104820.911
A11: 1.2.0.0.00.00.00.00 | B11: RECEITA DE CONTRIBUICOES | C11: =Plano!C5 -> 492452.81 | D11: =Plano!D5 -> 554692.61 | E11: =Plano!E5 -> 631442.44 | F11: =Plano!F5 -> 680000 | G11: =G12+G13 -> 761437.5678 | H11: =H12+H13 -> 838911.6369 | I11: =I12+I13 -> 923158.6766
A12: 1.2.0.0.00.00.00.00 | B12: Receitas de Contribuições - P M | C12: =Plano!C6 -> 105048.49 | D12: =Plano!D6 -> 115744.45 | E12: =Plano!E6 -> 165189.77 | F12: =Plano!F6 -> 180000 | G12: =F12*(1+Parâmetros!E11)*(1+Parâmetros!E12) -> 192223.5678 | H12: =G12*(1+Parâmetros!F11)*(1+Parâmetros!F12) -> 206160.8318 | I12: =H12*(1+Parâmetros!G11)*(1+Parâmetros!G12) -> 221053.3213
A13: 1.2.0.0.00.00.00.00 | B13: Receita de Contribuições - R P P S | C13: =Plano!C7 -> 387404.32 | D13: =Plano!D7 -> 438948.16 | E13: =Plano!E7 -> 466252.67 | F13: =Plano!F7 -> 500000 | G13: =F13*(1+Parâmetros!E11)*(1+Parâmetros!E17) -> 569214 | H13: =G13*(1+Parâmetros!F11)*(1+Parâmetros!F17) -> 632750.8051 | I13: =H13*(1+Parâmetros!G11)*(1+Parâmetros!G17) -> 702105.3554
A14: 1.3.0.0.00.00.00.00 | B14: RECEITA PATRIMONIAL | C14: =Plano!C8 -> 537867.23 | D14: =Plano!D8 -> 1560100.69 | E14: =Plano!E8 -> 1288660.93 | F14: =Plano!F8 -> 950400 | G14: =G15+G18 -> 1001830.449 | H14: =H15+H18 -> 1050645.014 | I14: =I15+I18 -> 1099844.335
A15: 1.3.2.0.00.00.00.00 | B15: Rendimentos de Aplicações Financeiras | C15: =Plano!C9 -> 537867.23 | D15: =Plano!D9 -> 1560100.69 | E15: =Plano!E9 -> 1287675.41 | F15: =Plano!F9 -> 949400 | G15: =G16+G17 -> 1000762.54 | H15: =H16+H17 -> 1049499.676 | I15: =I16+I17 -> 1098616.261
A16: 1.3.2.0.00.00.00.00 | B16: Rendimentos de Aplicações - PM | C16: =Plano!C10 -> 33066.4 | D16: =Plano!D10 -> 138715.45 | E16: =Plano!E10 -> 78511.21 | F16: =Plano!F10 -> 49400 | G16: =F16*(1+Parâmetros!E11) -> 52072.54 | H16: =G16*(1+Parâmetros!F11) -> 54608.4727 | I16: =H16*(1+Parâmetros!G11) -> 57164.14922
A17: 1.3.2.0.00.00.00.00 | B17: Rendimentos de Aplicações - RPPS | C17: =Plano!C11 -> 504800.83 | D17: =Plano!D11 -> 1421385.24 | E17: =Plano!E11 -> 1209164.2 | F17: =Plano!F11 -> 900000 | G17: =F17*(1+Parâmetros!E11) -> 948690 | H17: =G17*(1+Parâmetros!F11) -> 994891.203 | I17: =H17*(1+Parâmetros!G11) -> 1041452.111
A18: 1.3.9.0.00.00.00.00 | B18: Outras Receitas Patrimoniais | C18: =Plano!C12 -> 0 | D18: =Plano!D12 -> 0 | E18: =Plano!E12 -> 985.52 | F18: =Plano!F12 -> 1000 | G18: =F18*(1+Parâmetros!E11)*(1+Parâmetros!E12) -> 1067.90871 | H18: =G18*(1+Parâmetros!F11)*(1+Parâmetros!F12) -> 1145.337954 | I18: =H18*(1+Parâmetros!G11)*(1+Parâmetros!G12) -> 1228.074007
A19: 1.4.0.0.00.00.00.00 | B19: RECEITA AGROPECUARIA | C19: =Plano!C13 -> 0 | D19: =Plano!D13 -> 0 | E19: =Plano!E13 -> 0 | F19: =Plano!F13 -> 0 | G19: =F19*(1+Parâmetros!E11)*(1+Parâmetros!E12) -> 0 | H19: =G19*(1+Parâmetros!F11)*(1+Parâmetros!F12) -> 0 | I19: =H19*(1+Parâmetros!G11)*(1+Parâmetros!G12) -> 0
A20: 1.5.0.0.00.00.00.00 | B20: RECEITA INDUSTRIAL | C20: =Plano!C14 -> 0 | D20: =Plano!D14 -> 0 | E20: =Plano!E14 -> 0 | F20: =Plano!F14 -> 0 | G20: =F20*(1+Parâmetros!E11)*(1+Parâmetros!E12) -> 0 | H20: =G20*(1+Parâmetros!F11)*(1+Parâmetros!F12) -> 0 | I20: =H20*(1+Parâmetros!G11)*(1+Parâmetros!G12) -> 0
A21: 1.6.0.0.00.00.00.00 | B21: RECEITA DE SERVICOS | C21: =Plano!C15 -> 302734.04 | D21: =Plano!D15 -> 465242.31 | E21: =Plano!E15 -> 463558.81 | F21: =Plano!F15 -> 530000 | G21: =F21*(1+Parâmetros!E11)*(1+Parâmetros!E12) -> 565991.6163 | H21: =G21*(1+Parâmetros!F11)*(1+Parâmetros!F12) -> 607029.1158 | I21: =H21*(1+Parâmetros!G11)*(1+Parâmetros!G12) -> 650879.2237
A22: 1.7.0.0.00.00.00.00 | B22: TRANSFERENCIAS CORRENTES | C22: =Plano!C16 -> 14987703.15 | D22: =Plano!D16 -> 15824970.39 | E22: =Plano!E16 -> 16348632.51 | F22: =Plano!F16 -> 18086000 | G22: 20003497.75 | H22: =IF(G22=0,"-",(G22*(1+Parâmetros!F11)*(1+Parâmetros!F12)*(1+Parâmetros!F16))) -> 21712038.59 | I22: =IF(H22=0,"-",(H22*(1+Parâmetros!G11)*(1+Parâmetros!G12)*(1+Parâmetros!G16))) -> 23930333.66
A23: 1.9.0.0.00.00.00.00 | B23: OUTRAS RECEITAS CORRENTES | C23: =Plano!C17 -> 158114.54 | D23: =Plano!D17 -> 354455.36 | E23: =Plano!E17 -> 181398.81 | F23: =Plano!F17 -> 190800 | G23: =G24+G25 -> 203756.9819 | H23: =H24+H25 -> 218530.4817 | I23: =I24+I25 -> 234316.5205
A24: 1.9.0.0.00.00.00.00 | B24: Outras Receitas Correntes - P M | C24: =Plano!C18 -> 158114.54 | D24: =Plano!D18 -> 162691.1 | E24: =Plano!E18 -> 120956.14 | F24: =Plano!F18 -> 130800 | G24: =F24*(1+Parâmetros!E11)*(1+Parâmetros!E12) -> 139682.4593 | H24: =G24*(1+Parâmetros!F11)*(1+Parâmetros!F12) -> 149810.2044 | I24: =H24*(1+Parâmetros!G11)*(1+Parâmetros!G12) -> 160632.0801
A25: 1.9.0.0.00.00.00.00 | B25: Outras Receitas Correntes - R P P S | C25: =Plano!C19 -> 0 | D25: =Plano!D19 -> 191764.26 | E25: =Plano!E19 -> 60442.67 | F25: =Plano!F19 -> 60000 | G25: =F25*(1+Parâmetros!E11)*(1+Parâmetros!E12) -> 64074.5226 | H25: =G25*(1+Parâmetros!F11)*(1+Parâmetros!F12) -> 68720.27726 | I25: =H25*(1+Parâmetros!G11)*(1+Parâmetros!G12) -> 73684.44042
A26: 2.0.0.0.00.00.00.00 | B26: RECEITAS DE CAPITAL | C26: =Plano!C20 -> 1605771.58 | D26: =Plano!D20 -> 1891348.56 | E26: =Plano!E20 -> 2062478.6 | F26: =Plano!F20 -> 1810000 | G26: =G27+G28+G29+G30+G31 -> 531612.911 | H26: =H27+H28+H29+H30+H31 -> 1270157.766 | I26: =I27+I28+I29+I30+I31 -> 611344.389
A27: 2.1.0.0.00.00.00.00 | B27: OPERACOES DE CREDITO | C27: =Plano!C21 -> 0 | D27: =Plano!D21 -> 0 | E27: =Plano!E21 -> 0 | F27: =Plano!F21 -> 560000 | G27: =Dívida!E17 -> 0 | H27: =Dívida!F17 -> 700000 | I27: =Dívida!G17 -> 0
A28: 2.2.0.0.00.00.00.00 | B28: ALIENACAO DE BENS | C28: =Plano!C22 -> 0 | D28: =Plano!D22 -> 218220 | E28: =Plano!E22 -> 73000 | F28: =Plano!F22 -> 100000 | G28: =F28*(1+Parâmetros!E11)*(1+Parâmetros!E12) -> 106790.871 | H28: =G28*(1+Parâmetros!F11)*(1+Parâmetros!F12) -> 114533.7954 | I28: =H28*(1+Parâmetros!G11)*(1+Parâmetros!G12) -> 122807.4007
A29: 2.3.0.0.00.00.00.00 | B29: AMORTIZACAO DE EMPRESTIMOS | C29: =Plano!C23 -> 0 | D29: =Plano!D23 -> 0 | E29: =Plano!E23 -> 0 | F29: =Plano!F23 -> 0 | G29: =F29*(1+Parâmetros!E11)*(1+Parâmetros!E12) -> 0 | H29: =G29*(1+Parâmetros!F11)*(1+Parâmetros!F12) -> 0 | I29: =H29*(1+Parâmetros!G11)*(1+Parâmetros!G12) -> 0
A30: 2.4.0.0.00.00.00.00 | B30: TRANSFERENCIAS DE CAPITAL | C30: =Plano!C24 -> 1605771.58 | D30: =Plano!D24 -> 1673128.56 | E30: =Plano!E24 -> 1989478.6 | F30: =Plano!F24 -> 1150000 | G30: 424822.04 | H30: =G30*(1+Parâmetros!F11)*(1+Parâmetros!F12) -> 455623.9702 | I30: =H30*(1+Parâmetros!G11)*(1+Parâmetros!G12) -> 488536.9883
A31: 2.5.0.0.00.00.00.00 | B31: OUTRAS RECEITAS DE CAPITAL | C31: =Plano!C25 -> 0 | D31: =Plano!D25 -> 0 | E31: =Plano!E25 -> 0 | F31: =Plano!F25 -> 0 | G31: =F31*(1+Parâmetros!E11)*(1+Parâmetros!E12) -> 0 | H31: =G31*(1+Parâmetros!F11)*(1+Parâmetros!F12) -> 0 | I31: =H31*(1+Parâmetros!G11)*(1+Parâmetros!G12) -> 0
A32: 7.2.1.0.00.00.00.00 | B32: Receitas Intra Orçamentárias - RPPS | C32: =Plano!C26 -> 877002.32 | D32: =Plano!D26 -> 1053918.55 | E32: =Plano!E26 -> 1182049.22 | F32: =Plano!F26 -> 1300000 | G32: =F32*(1+Parâmetros!E11)*(1+Parâmetros!E17) -> 1479956.4 | H32: =G32*(1+Parâmetros!F11)*(1+Parâmetros!F17) -> 1645152.093 | I32: =H32*(1+Parâmetros!G11)*(1+Parâmetros!G17) -> 1825473.924
A33: 9.0.0.0.00.00.00.00 | B33: DEDUÇÕES DA RECEITA | C33: =Plano!C27 -> -3944135.34 | D33: =Plano!D27 -> -2806681.84 | E33: =Plano!E27 -> -2921854.99 | F33: =Plano!F27 -> -2766200 | G33: =F33*(1+Parâmetros!E11)*(1+Parâmetros!E12) -> -2954049.074 | H33: =G33*(1+Parâmetros!F11)*(1+Parâmetros!F12) -> -3168233.849 | I33: =H33*(1+Parâmetros!G11)*(1+Parâmetros!G12) -> -3397098.318
C34: =Plano!C28 -> 0 | D34: =Plano!D28 -> 0 | E34: =Plano!E28 -> 0 | F34: =Plano!F28 -> 0
B35: TOTAL DA RECEITA | C35: =Plano!C29 -> 16047769.92 | D35: =Plano!D29 -> 20057662.4 | E35: =Plano!E29 -> 20476629.78 | F35: =Plano!F29 -> 22140000 | G35: =G9+G26+G32+G33 -> 23298164.03 | H35: =H9+H26+H32+H33 -> 26059122.46 | I35: =I9+I26+I32+I33 -> 27983073.32
A38: CÓDIGOS | B38: CONTAS | C38: REALIZADA | D38: REALIZADA | E38: REALIZADA | F38: REESTIMADO | G38: PROJETADO | H38: PROJETADO | I38: PROJETADO | J38: PROJETADO
B39: CONSOLIDADAS ANUAIS | C39: 2013 | D39: =C39+1 -> 2014 | E39: 2015 | F39: 2016 | G39: 2017 | H39: 2018 | I39: 2019 | J39: 2005
A40: 3.0.00.00.00.00.00 | B40: DESPESAS CORRENTES | C40: =Plano!C33 -> 13190424.93 | D40: =Plano!D33 -> 15247148.95 | E40: =Plano!E33 -> 16026185.6 | F40: =Plano!F33 -> 18089000 | G40: =(G41+G44+G47) -> 19858755.71 | H40: =H41+H44+H47 -> 21356863.53 | I40: =I41+I44+I47 -> 23408465.37
A41: 3.1.00.00.00.00.00 | B41: PESSOAL E ENCARGOS SOCIAIS | C41: =Plano!C34 -> 6312865.63 | D41: =Plano!D34 -> 7484629.53 | E41: =Plano!E34 -> 7505879.24 | F41: =Plano!F34 -> 8346000 | G41: 9248146.72 | H41: =H42+H43 -> 9463816.46 | I41: =I42+I43 -> 9974043.188
A42: 3.1.00.00.00.00.00 | B42: Pessoal Próprio | C42: =Plano!C35 -> 6312865.63 | D42: =Plano!D35 -> 7484629.53 | E42: =Plano!E35 -> 7505879.24 | F42: =Plano!F35 -> 8326000 | G42: 9226515.96 | H42: =G42*(1+Parâmetros!F11)*(1+Parâmetros!F13)*(1+Parâmetros!F17) -> 9441681.264 | I42: =H42*(1+Parâmetros!G11)*(1+Parâmetros!G13)*(1+Parâmetros!G17) -> 9950714.608
A43: 3.1.00.00.00.00.00 | B43: Pessoal do R P P S | C43: =Plano!C36 -> 0 | D43: =Plano!D36 -> 0 | E43: =Plano!E36 -> 0 | F43: =Plano!F36 -> 20000 | G43: =F43*(1+Parâmetros!E11)*(1+Parâmetros!E13)*(1+Parâmetros!E17) -> 21630.75956 | H43: =G43*(1+Parâmetros!F11)*(1+Parâmetros!F13)*(1+Parâmetros!F17) -> 22135.19579 | I43: =H43*(1+Parâmetros!G11)*(1+Parâmetros!G13)*(1+Parâmetros!G17) -> 23328.57993
A44: 3.2.00.00.00.00.00 | B44: JUROS E ENCARGOS DA DÍVIDA | C44: =Plano!C37 -> 181306.56 | D44: =Plano!D37 -> 104020.53 | E44: =Plano!E37 -> 48779.41 | F44: =Plano!F37 -> 100000 | G44: =G45+G46 -> 117985.413 | H44: =H45+H46 -> 136797.3282 | I44: =I45+I46 -> 157705.5467
A45: 3.2.00.00.00.00.00 | B45: Juros e Encargos da Dívida | C45: =Plano!C38 -> 181306.56 | D45: =Plano!D38 -> 104020.53 | E45: =Plano!E38 -> 48779.41 | F45: =Plano!F38 -> 100000 | G45: =F45*(1+Parâmetros!E11)*(1+Parâmetros!E19) -> 117985.413 | H45: =G45*(1+Parâmetros!F11)*(1+Parâmetros!F19) -> 136797.3282 | I45: =H45*(1+Parâmetros!G11)*(1+Parâmetros!G19) -> 157705.5467
A46: 3.2.00.00.00.00.00 | B46: Juros e encargos da Dívida RPPS | C46: =Plano!C39 -> 0 | D46: =Plano!D39 -> 0 | E46: =Plano!E39 -> 0 | F46: =Plano!F39 -> 0 | G46: =F46*(1+Parâmetros!E11)*(1+Parâmetros!E19) -> 0 | H46: =G46*(1+Parâmetros!F11)*(1+Parâmetros!F19) -> 0 | I46: =H46*(1+Parâmetros!G11)*(1+Parâmetros!G19) -> 0
A47: 3.3.00.00.00.00.00 | B47: OUTRAS DESPESAS CORRENTES | C47: =Plano!C40 -> 6696252.74 | D47: =Plano!D40 -> 7658498.89 | E47: =Plano!E40 -> 8471526.95 | F47: =Plano!F40 -> 9643000 | G47: 10492623.58 | H47: =H48+H49 -> 11756249.74 | I47: =I48+I49 -> 13276716.64
A48: 3.3.00.00.00.00.00 | B48: Outras Despesas Correntes | C48: =Plano!C41 -> 5770144.79 | D48: =Plano!D41 -> 6558559.86 | E48: =Plano!E41 -> 7044944.35 | F48: =Plano!F41 -> 8028000 | G48: 8668337.87 | H48: =G48*(1+Parâmetros!F11)*(1+Parâmetros!F14) -> 9713158.409 | I48: =H48*(1+Parâmetros!G11)*(1+Parâmetros!G14) -> 10969386.89
A49: 3.3.00.00.00.00.00 | B49: Outras Despesas Corrente RPPS | C49: =Plano!C42 -> 926107.95 | D49: =Plano!D42 -> 1099939.03 | E49: =Plano!E42 -> 1426582.6 | F49: =Plano!F42 -> 1615000 | G49: =F49*(1+Parâmetros!E11)*(1+Parâmetros!E14) -> 1823321.03 | H49: =G49*(1+Parâmetros!F11)*(1+Parâmetros!F14) -> 2043091.336 | I49: =H49*(1+Parâmetros!G11)*(1+Parâmetros!G14) -> 2307329.745
A50: 4.0.00.00.00.00.00 | B50: DESPESAS DE CAPITAL | C50: =Plano!C43 -> 1855835.97 | D50: =Plano!D43 -> 2994994.55 | E50: =Plano!E43 -> 4201189.75 | F50: =Plano!F43 -> 3121000 | G50: =G51+G54+G57 -> 2020043.96 | H50: =H51+H54+H57 -> 2270081.915 | I50: =I51+I54+I57 -> 2544027.366
A51: 4.4.00.00.00.00.00 | B51: INVESTIMENTOS | C51: =Plano!C44 -> 1001672.72 | D51: =Plano!D44 -> 1799284.05 | E51: =Plano!E44 -> 3136625.33 | F51: =Plano!F44 -> 2420000 | G51: =G52+G53 -> 1195764.85 | H51: =H52+H53 -> 1316698.528 | I51: =I52+I53 -> 1447236.02
A52: 4.4.00.00.00.00.00 | B52: Invetimentos | C52: =Plano!C45 -> 1001672.72 | D52: =Plano!D45 -> 1799284.05 | E52: =Plano!E45 -> 3136625.33 | F52: =Plano!F45 -> 2420000 | G52: 1195764.85 | H52: =G52*(1+Parâmetros!F11)*(1+Parâmetros!F18) -> 1316698.528 | I52: =H52*(1+Parâmetros!G11)*(1+Parâmetros!G18) -> 1447236.02
A53: 4.4.00.00.00.00.00 | B53: Invetimentos RPPS | C53: =Plano!C46 -> 0 | D53: =Plano!D46 -> 0 | E53: =Plano!E46 -> 0 | F53: =Plano!F46 -> 0 | G53: =F53*(1+Parâmetros!E11)*(1+Parâmetros!E18) -> 0 | H53: =G53*(1+Parâmetros!F11)*(1+Parâmetros!F18) -> 0 | I53: =H53*(1+Parâmetros!G11)*(1+Parâmetros!G18) -> 0
A54: 4.5.00.00.00.00.00 | B54: INVERSÕES FINANCEIRAS | C54: =Plano!C47 -> 49527.13 | D54: =Plano!D47 -> 223392.03 | E54: =Plano!E47 -> 173424.12 | F54: =Plano!F47 -> 25000 | G54: =G55+G56 -> 26697.71775 | H54: =H55+H56 -> 28633.44886 | I54: =I55+I56 -> 30701.85017
A55: 4.5.90.66.00.00.00 | B55: Concessão de Empréstimos e Financiamentos | C55: =Plano!C48 -> 0 | D55: =Plano!D48 -> 0 | E55: =Plano!E48 -> 0 | F55: =Plano!F48 -> 0 | G55: =F55*(1+Parâmetros!E11)*(1+Parâmetros!E12) -> 0 | H55: =G55*(1+Parâmetros!F11)*(1+Parâmetros!F12) -> 0 | I55: =H55*(1+Parâmetros!G11)*(1+Parâmetros!G12) -> 0
A56: 4.5.90.99.00.00.00 | B56: Outras Inversões Financeiras | C56: =Plano!C49 -> 49527.13 | D56: =Plano!D49 -> 223392.03 | E56: =Plano!E49 -> 173424.12 | F56: =Plano!F49 -> 25000 | G56: =F56*(1+Parâmetros!E11)*(1+Parâmetros!E12) -> 26697.71775 | H56: =G56*(1+Parâmetros!F11)*(1+Parâmetros!F12) -> 28633.44886 | I56: =H56*(1+Parâmetros!G11)*(1+Parâmetros!G12) -> 30701.85017
A57: 4.6.00.00.00.00.00 | B57: AMORTIZAÇÃO DA DÍVIDA PÚBLICA | C57: =Plano!C50 -> 804636.12 | D57: =Plano!D50 -> 972318.47 | E57: =Plano!E50 -> 891140.3 | F57: =Plano!F50 -> 676000 | G57: =F57*(1+Parâmetros!E11)*(1+Parâmetros!E19) -> 797581.3919 | H57: =G57*(1+Parâmetros!F11)*(1+Parâmetros!F19) -> 924749.9384 | I57: =H57*(1+Parâmetros!G11)*(1+Parâmetros!G19) -> 1066089.496
A58: 9.9.99.99.99.99.01 | B58: RESERVA DE CONTINGÊNCIA | F58: =Plano!F52 -> 5000 | G58: 10000 | H58: =H35-H40-H50-H59 -> 1155889.163 | I58: =I35-I40-I50-I59 -> 718523.0747
A59: 9.9.99.99.99.99.02 | B59: RESERVA DE CONTINGÊNCIA DO RPPS | F59: =Plano!F53 -> 925000 | G59: =(G13+G17+G25+G32)-(G43+G46+G49+G53) -> 1216983.133 | H59: =(H13+H17+H25+H32)-(H43+H46+H49+H53) -> 1276287.847 | I59: =(I13+I17+I25+I32)-(I43+I46+I49+I53) -> 1312057.506
B60: TOTAL DA DESPESA | C60: =Plano!C55 -> 15046260.9 | D60: =Plano!D55 -> 18242143.5 | E60: =Plano!E55 -> 20227375.35 | F60: =Plano!F55 -> 22140000 | G60: =G40+G50+G58+G59 -> 23105782.81 | H60: =H40+H50+H58+H59 -> 26059122.46 | I60: =I40+I50+I58+I59 -> 27983073.32
A61: 50000002 | B61: Operação de Crédito Externo
B62: RESULTADOS | C62: REALIZADO | D62: =IF(#REF!>0,"REALIZADO","PROJETADO") ->  | E62: =IF(#REF!>0,"REALIZADO","PROJETADO") ->  | F62: =IF(#REF!>0,"REALIZADO","PROJETADO") ->  | G62: PROJETADO | I62: PROJETADO | J62: PROJETADO
B63: FISCAIS | C63: 1999 | D63: 2000 | E63: 2001 | F63: 2002 | G63: 2003 | I63: 2004 | J63: 2005
B65: 1. RECEITA CORRENTE LÍQUIDA | C65: =C8-#REF!-C14+C69-#REF! ->  | D65: =D8-#REF!-D14+D69-#REF! ->  | E65: =E8-#REF!-E14+E69-#REF! ->  | F65: =F8-#REF!-F14+F69-#REF! ->  | G65: =G8-#REF!-G14+G69-#REF! ->  | I65: =I8-#REF!-I14+I69-#REF! ->  | J65: =J8-#REF!-J14+J69 -> 
B66: 2. RECEITAS DE TRIBUTOS | C66: =C9 -> 17509131.36 | D66: =D9 -> 19919077.13 | E66: 20153956.95 | F66: 21796200 | G66: 24240643.79 | I66: 28943353.32 | J66: 0
B67: 3. RECEITAS FINANCEIRAS | C67: =C19+C20+C22+#REF!+#REF!+#REF!+#REF! ->  | D67: =D19+D20+D22+#REF!+#REF!+#REF!+#REF! ->  | E67: =E19+E20+E22+#REF!+#REF!+#REF!+#REF! ->  | F67: =F19+F20+F22+#REF!+#REF!+#REF!+#REF! ->  | G67: =G19+G20+G22+#REF!+#REF!+#REF!+#REF! ->  | I67: =I19+I20+I22+#REF!+#REF!+#REF!+#REF! ->  | J67: =J19+J20+J22+#REF!+#REF!+#REF!+#REF! -> 
B68: 4. RENÚNCIA FISCAL | C68: =#REF! ->  | D68: =#REF! ->  | E68: =#REF! ->  | F68: =#REF! ->  | G68: =#REF! ->  | I68: =#REF! ->  | J68: =#REF! -> 
B69: 5. VALOR LÍQUIDO DO FUNDEF | C69: =#REF!-#REF! ->  | D69: =#REF!-#REF! ->  | E69: =#REF!-#REF! ->  | F69: =#REF!-#REF! ->  | G69: =#REF!-#REF! ->  | I69: =#REF!-#REF! ->  | J69: =#REF!-#REF! -> 
B70: 6. TRANSFERÊNCIAS DA UNIÃO | C70: =#REF! ->  | D70: =#REF! ->  | E70: =#REF! ->  | F70: =#REF! ->  | G70: =#REF! ->  | I70: =#REF! ->  | J70: =#REF! -> 
B71: 7. TRANSFERÊNCIAS DOS ESTADOS | C71: =#REF! ->  | D71: =#REF! ->  | E71: =#REF! ->  | F71: =#REF! ->  | G71: =#REF! ->  | I71: =#REF! ->  | J71: =#REF! -> 
B72: 8. OPERAÇÕES DE CRÉDITO | C72: =#REF! ->  | D72: =#REF! ->  | E72: =#REF! ->  | F72: =#REF! ->  | G72: =#REF! ->  | I72: =#REF! ->  | J72: =#REF! -> 
B73: 9. AROS | C73: =C30 -> 1605771.58 | D73: =D30 -> 1673128.56 | E73: 1989478.6 | F73: 1150000 | G73: 424822.04 | I73: 488536.9883 | J73: 0
B74: 10. PESSOAL ATIVO | C74: =#REF!+#REF!+C55+C56+C57+#REF!+C59+C60+C44+#REF! ->  | D74: =#REF!+#REF!+D55+D56+D57+#REF!+D59+D60+D44+#REF! ->  | E74: =#REF!+#REF!+E55+E56+E57+#REF!+E59+E60+E44+#REF! ->  | F74: =#REF!+#REF!+F55+F56+F57+#REF!+F59+F60+F44+#REF! ->  | G74: =#REF!+#REF!+G55+G56+G57+#REF!+G59+G60+G44+#REF! ->  | I74: =#REF!+#REF!+I55+I56+I57+#REF!+I59+I60+I44+#REF! ->  | J74: =#REF!+#REF!+J55+J56+J57+#REF!+J59+J60 -> 
B75: 11. PESSOAL INATIVO | C75: =#REF!+#REF! ->  | D75: =#REF!+#REF! ->  | E75: =#REF!+#REF! ->  | F75: =#REF!+#REF! ->  | G75: =#REF!+#REF! ->  | I75: =#REF!+#REF! ->  | J75: =#REF!+#REF! -> 
B76: 12. PENSIONISTAS | C76: =C51+C54 -> 1051199.85 | D76: =D51+D54 -> 2022676.08 | E76: =E51+E54 -> 3310049.45 | F76: =F51+F54 -> 2445000 | G76: =G51+G54 -> 1222462.568 | I76: =I51+I54 -> 1477937.87 | J76: =J51+J54 -> 0
B77: 13. SERVIÇOS DE TERCEIROS | C77: =#REF! ->  | D77: =#REF! ->  | E77: =#REF! ->  | F77: =#REF! ->  | G77: =#REF! ->  | I77: =#REF! ->  | J77: =#REF! -> 
B78: 14. OUTROS CUSTEIOS CORRENTES | C78: =C47+#REF!+#REF!+#REF!+#REF!+#REF!+#REF! ->  | D78: =D47+#REF!+#REF!+#REF!+#REF!+#REF!+#REF! ->  | E78: =E47+#REF!+#REF!+#REF!+#REF!+#REF!+#REF! ->  | F78: =F47+#REF!+#REF!+#REF!+#REF!+#REF!+#REF! ->  | G78: =G47+#REF!+#REF!+#REF!+#REF!+#REF!+#REF! ->  | I78: =I47+#REF!+#REF!+#REF!+#REF!+#REF!+#REF! ->  | J78: =J47+#REF!+#REF!+#REF!+#REF!+#REF!+#REF! -> 
B79: 15. INVESTIMENTOS | C79: =#REF! ->  | D79: =#REF! ->  | E79: =#REF! ->  | F79: =#REF! ->  | G79: =#REF! ->  | I79: =#REF! ->  | J79: =#REF! -> 
B80: 16. ENCARGOS DA DÍVIDA | C80: =#REF!+#REF! ->  | D80: =#REF!+#REF! ->  | E80: =#REF!+#REF! ->  | F80: =#REF!+#REF! ->  | G80: =#REF!+#REF! ->  | I80: =#REF!+#REF! ->  | J80: =#REF!+#REF! -> 
B81: 17. AMORTIZAÇÕES DA DÍVIDA | C81: =#REF!+#REF! ->  | D81: =#REF!+#REF! ->  | E81: =#REF!+#REF! ->  | F81: =#REF!+#REF! ->  | G81: =#REF!+#REF! ->  | I81: =#REF!+#REF! ->  | J81: =#REF!+#REF! -> 
B82: 18. DESPESAS FINANCEIRAS | C82: =C80+C81 ->  | D82: =D80+D81 -> 
B83: 19. RESULTADO PRIMÁRIO | C83: =((C8+C28)-(C67)-((#REF!+#REF!)-C82)) ->  | D83: =((D8+D28)-(D67)-((#REF!+#REF!)-D82)) ->  | E83: =((E8+E28)-(E67)-((#REF!+#REF!)-E82)) ->  | F83: =((F8+F28)-(F67)-((#REF!+#REF!)-F82)) ->  | G83: =((G8+G28)-(G67)-((#REF!+#REF!)-G82)) ->  | I83: =((I8+I28)-(I67)-((#REF!+#REF!)-I82)) ->  | J83: =((J8+J28)-(J67)-((#REF!+#REF!)-J82)) -> 
B84: 20. RESULTADO NOMINAL | C84: =-(C83-(C80-C19-C20-C22-#REF!)) ->  | D84: =-(D83-(D80-D19-D20-D22-#REF!)) ->  | E84: =-(E83-(E80-E19-E20-E22-#REF!)) ->  | F84: =-(F83-(F80-F19-F20-F22-#REF!)) ->  | G84: =-(G83-(G80-G19-G20-G22-#REF!)) ->  | I84: =-(I83-(I80-I19-I20-I22-#REF!)) ->  | J84: =J83-J80 -> 

Sheet Parâmetros
A7: Município de : Paverama
A8: LEI DE DIRETRIZES ORÇAMENTÁRIAS PARA 2017
A9: TABELA 01 - Parâmentos Utilizados nas Estimativas das Receitas e Despesas
A10: Execício | B10: 2014 | C10: 2015 | D10: 2016 | E10: 2017 | F10: 2018 | G10: 2019
A11: INFLAÇÃO MÉDIA ANUAL (I P C A) | B11: 0.064 | C11: 0.1067 | D11: 0.0731 | E11: 0.0541 | F11: 0.0487 | G11: 0.0468
A12: VARIAÇÃODO PIB | B12: 0.001 | C12: -0.038 | D12: -0.0318 | E12: 0.0131 | F12: 0.0227 | G12: 0.0243
A13: CRESCIMENTO VEGETATIVO DA FOLHA SALARIAL | B13: =IF(Projeções!C41=0,"-",((Projeções!D41/Projeções!C41)-1)-B11-B17) -> 0.03841521323 | C13: =IF(Projeções!D41=0,"-",((Projeções!E41/Projeções!D41)-1)-C11-C17) -> -0.1671608869 | D13: =IF(Projeções!E41=0,"-",((Projeções!F41/Projeções!E41)-1)-D11-D17) -> -0.02117163916 | E13: =(B13+C13+D13)/3 -> -0.0499724376 | F13: -0.07943498787 | G13: -0.05019302154
A14: CRESCIMENTO AUTÔNOMO DE OUTROS CUSTEIOS | B14: =IF(Projeções!C47=0,"-",((Projeções!D47/Projeções!C47)-1)-B11-B12) -> 0.07869919825 | C14: =IF(Projeções!D47=0,"-",((Projeções!E47/Projeções!D47)-1)-C11-C12) -> 0.03746023736 | D14: =IF(Projeções!E47=0,"-",((Projeções!F47/Projeções!E47)-1)-D11-D12) -> 0.09698357708 | E14: 0.0710476709 | F14: 0.06849716178 | G14: 0.07884280325
A15: ESFORÇO NA ARRECADAÇÃO TRIBUTÁRIA | B15: =IF(Projeções!C10=0,"-",((Projeções!D10/Projeções!C10)-1)-B11-B12) -> 0.06055688028 | C15: =IF(Projeções!D10=0,"-",((Projeções!E10/Projeções!D10)-1)-C11-C12) -> 0.0008468982799 | D15: =IF(Projeções!E10=0,"-",((Projeções!F10/Projeções!E10)-1)-D11-D12) -> 0.05443494244 | E15: 0.038612907 | F15: 0.03129824924 | G15: 0.04144869956
A16: CRESC.REAL DAS RECEITAS TRANSFERIDAS | B16: =IF(Projeções!C22=0,"-",((Projeções!D22/Projeções!C22)-1)-B11-B12) -> -0.009136387569 | C16: =IF(Projeções!D22=0,"-",((Projeções!E22/Projeções!D22)-1)-C11-C12) -> -0.03560912481 | D16: =IF(Projeções!E22=0,"-",((Projeções!F22/Projeções!E22)-1)-D11-D12) -> 0.06496989682 | E16: 0.006741461479 | F16: 0.01203407783 | G16: 0.02791514538
A17: PERCENTUAL DE AUMENTO SALARIAL | B17: 0.0832 | C17: 0.0633 | D17: 0.06 | E17: 0.08 | F17: 0.06 | G17: 0.06
A18: CRESCIMENTO DOS INVESTIMENTOS | B18: =IF(Projeções!C51=0,"-",((Projeções!D51/Projeções!C51)-1)-B11-B12) -> 0.7312793776 | C18: =IF(Projeções!D51=0,"-",((Projeções!E51/Projeções!D51)-1)-C11-C12) -> 0.6745630106 | D18: =IF(Projeções!E51=0,"-",((Projeções!F51/Projeções!E51)-1)-D11-D12) -> -0.2697701724 | E18: 0.05 | F18: 0.05 | G18: 0.05
A19: Taxa de Juros Selic (Média do Ano) | B19: 0.117 | C19: 0.1425 | D19: 0.1416 | E19: 0.1193 | F19: 0.1056 | G19: 0.1013
A20: PIB / RS (em R$ milhões) | B20: =38897.51/0.1079 -> 360495.9222 | C20: =40362.31/0.1029 -> 392247.9106 | D20: =50295.39/0.1322 -> 380449.2436 | E20: =51996.31/0.1153 -> 450965.3946 | F20: =56323.12/0.1142 -> 493197.1979 | G20: =59060.8/0.1099 -> 537404.9136

Sheet Metas
A1: =Parâmetros!A7 -> Município de : Paverama
A2: LEI DE DIRETRIZES ORÇAMENTÁRIAS
A3: ANEXO I - METAS FISCAIS
A4: DEMONSTRATIVO DAS METAS ANUAIS - CONSOLIDADO
A5: EXERCÍCIO DE 2017
A7: AMF - Demonstrativo I (LRF, art. 4º, § 1º) | H7: 1
A8: ESPECIFICAÇÃO | B8: 2017 | E8: =B8+1 -> 2018 | H8: =E8+1 -> 2019
B9: Valor | C9: Valor | D9: % PIB | E9: Valor | F9: Valor | G9: % PIB | H9: Valor | I9: Valor | J9: % PIB
B10: Corrente | C10: Constante | D10: (a / PIB) | E10: Corrente | F10: Constante | G10: (b / PIB) | H10: Corrente | I10: Constante | J10: (c / PIB)
B11: (a) | D11: x 100 | E11: (b) | G11: x 100 | H11: (c) | J11: x 100
A12: Receita Total | B12: =Projeções!G35 -> 23298164.03 | C12: =B12/(1+Parâmetros!E11) -> 22102422.95 | D12: =B12/(Parâmetros!E20)/1000000 -> 5.16628644e-05 | E12: =Projeções!H35 -> 26059122.46 | F12: =E12/((1+Parâmetros!E11)*(1+Parâmetros!F11)) -> 23573643.17 | G12: =E12/(Parâmetros!F20)/1000000 -> 5.283712594e-05 | H12: =Projeções!I35 -> 27983073.32 | I12: =H12/((1+Parâmetros!E11)*(1+Parâmetros!F11)*(1+Parâmetros!G11)) -> 24182356.26 | J12: =H12/(Parâmetros!G20)/1000000 -> 5.207074333e-05
A13: Receitas Primárias (I) | B13: =B12-(Projeções!G15+Projeções!G27+Projeções!G28+Projeções!G29) -> 22190610.62 | C13: =B13/(1+Parâmetros!E11) -> 21051712.95 | D13: =B13/(Parâmetros!E20)/1000000 -> 4.920690342e-05 | E13: =E12-(Projeções!H15+Projeções!H27+Projeções!H28+Projeções!H29) -> 24195088.99 | F13: =E13/((1+Parâmetros!E11)*(1+Parâmetros!F11)) -> 21887398.36 | G13: =E13/(Parâmetros!F20)/1000000 -> 4.905763676e-05 | H13: =H12-(Projeções!I15+Projeções!I27+Projeções!I28+Projeções!I29) -> 26761649.66 | I13: =H13/((1+Parâmetros!E11)*(1+Parâmetros!F11)*(1+Parâmetros!G11)) -> 23126828.81 | J13: =H13/(Parâmetros!G20)/1000000 -> 4.979792514e-05
A14: Despesa Total | B14: =Projeções!G60 -> 23105782.81 | C14: =B14/(1+Parâmetros!E11) -> 21919915.38 | D14: =B14/(Parâmetros!E20)/1000000 -> 5.123626576e-05 | E14: =Projeções!H60 -> 26059122.46 | F14: =E14/((1+Parâmetros!E11)*(1+Parâmetros!F11)) -> 23573643.17 | G14: =E14/(Parâmetros!F20)/1000000 -> 5.283712594e-05 | H14: =Projeções!I60 -> 27983073.32 | I14: =H14/((1+Parâmetros!E11)*(1+Parâmetros!F11)*(1+Parâmetros!G11)) -> 24182356.26 | J14: =H14/(Parâmetros!G20)/1000000 -> 5.207074333e-05
A15: Despesas Primárias (II) | B15: =B14-(Projeções!G44+Projeções!G55+Projeções!G57) -> 22190216 | C15: =B15/(1+Parâmetros!E11) -> 21051338.58 | D15: =B15/(Parâmetros!E20)/1000000 -> 4.920602837e-05 | E15: =E14-(Projeções!H44+Projeções!H55+Projeções!H57) -> 24997575.19 | F15: =E15/((1+Parâmetros!E11)*(1+Parâmetros!F11)) -> 22613344.66 | G15: =E15/(Parâmetros!F20)/1000000 -> 5.068474699e-05 | H15: =H14-(Projeções!I44+Projeções!I55+Projeções!I57) -> 26759278.28 | I15: =H15/((1+Parâmetros!E11)*(1+Parâmetros!F11)*(1+Parâmetros!G11)) -> 23124779.51 | J15: =H15/(Parâmetros!G20)/1000000 -> 4.979351249e-05
A16: Resultado Primário (I – II) | B16: =B13-B15 -> 394.6203594 | C16: =C13-C15 -> 374.3670993 | D16: =B16/(Parâmetros!E20)/1000000 -> 8.750568538e-10 | E16: =E13-E15 -> -802486.2045 | F16: =F13-F15 -> -725946.2963 | G16: =E16/(Parâmetros!F20)/1000000 -> -1.627110227e-06 | H16: =H13-H15 -> 2371.381299 | I16: =I13-I15 -> 2049.295542 | J16: =H16/(Parâmetros!G20)/1000000 -> 4.412652804e-09
A17: Resultado Nominal | B17: =Dívida!E12 -> -484094.1833 | C17: =B17/(1+Parâmetros!E11) -> -459248.8221 | D17: =B17/(Parâmetros!E20)/1000000 -> -1.073461931e-06 | E17: =Dívida!F12 -> 531426.1156 | F17: =E17/((1+Parâmetros!E11)*(1+Parâmetros!F11)) -> 480739.5045 | G17: =E17/(Parâmetros!F20)/1000000 -> 1.077512439e-06 | H17: =Dívida!G12 -> -265919.3493 | I17: =H17/((1+Parâmetros!E11)*(1+Parâmetros!F11)*(1+Parâmetros!G11)) -> -229801.6507 | J17: =H17/(Parâmetros!G20)/1000000 -> -4.948212094e-07
A18: Dívida Pública Consolidada | B18: =Dívida!E7 -> 525000 | C18: =B18/(1+Parâmetros!E11) -> 498055.213 | D18: =B18/(Parâmetros!E20)/1000000 -> 1.16416915e-06 | E18: =Dívida!F7 -> 1050000 | F18: =E18/((1+Parâmetros!E11)*(1+Parâmetros!F11)) -> 949852.6041 | G18: =E18/(Parâmetros!F20)/1000000 -> 2.128965867e-06 | H18: =Dívida!G7 -> 700000 | I18: =H18/((1+Parâmetros!E11)*(1+Parâmetros!F11)*(1+Parâmetros!G11)) -> 604924.5982 | J18: =H18/(Parâmetros!G20)/1000000 -> 1.30255601e-06
A19: Dívida Consolidada Líquida | B19: =Dívida!E9 -> -940094.1833 | C19: =B19/(1+Parâmetros!E11) -> -891845.3499 | D19: =B19/(Parâmetros!E20)/1000000 -> -2.084625992e-06 | E19: =Dívida!F9 -> -408668.0678 | F19: =E19/((1+Parâmetros!E11)*(1+Parâmetros!F11)) -> -369689.9318 | G19: =E19/(Parâmetros!F20)/1000000 -> -8.286098735e-07 | H19: =Dívida!G9 -> -674587.417 | I19: =H19/((1+Parâmetros!E11)*(1+Parâmetros!F11)*(1+Parâmetros!G11)) -> -582963.6032 | J19: =H19/(Parâmetros!G20)/1000000 -> -1.255268421e-06
A20: Receitas Primárias Advindas de PPP (IV) | B20: 0 | C20: 0 | D20: 0 | E20: 0 | F20: 0 | G20: 0 | H20: 0 | I20: 0 | J20: 0
A21: Despesas Primárias Geradas por PPP (V) | B21: 0 | C21: 0 | D21: 0 | E21: 0 | F21: 0 | G21: 0 | H21: 0 | I21: 0 | J21: 0
A22: Impacto do Saldo das PPP (VI) = (IV) - (V) | B22: 0 | C22: 0 | D22: 0 | E22: 0 | F22: 0 | G22: 0 | H22: 0 | I22: 0 | J22: 0

Sheet MetasRPPS
A1: =Parâmetros!A7 -> Município de : Paverama
A2: LEI DE DIRETRIZES ORÇAMENTÁRIAS
A3: ANEXO I - METAS FISCAIS
A4: DEMONSTRATIVO DAS METAS DE RESULTADO PRIMÁRIO DO PREGIME PRÓPRIO DE PREVIDÊNCIA SOCIAL
A5: EXERCÍCIO DE 2017
A7: AMF - Demonstrativo I (LRF, art. 4º, § 1º) | H7: 1
A8: ESPECIFICAÇÃO | B8: 2017 | E8: =B8+1 -> 2018 | H8: =E8+1 -> 2019
B9: Valor | C9: Valor | D9: % PIB | E9: Valor | F9: Valor | G9: % PIB | H9: Valor | I9: Valor | J9: % PIB
B10: Corrente | C10: Constante | D10: (a / PIB) | E10: Corrente | F10: Constante | G10: (b / PIB) | H10: Corrente | I10: Constante | J10: (c / PIB)
B11: (a) | D11: x 100 | E11: (b) | G11: x 100 | H11: (c) | J11: x 100
A12: Receita Total RPPS | B12: 3061764.24 | C12: =B12/(1+Parâmetros!E11) -> 2904624.077 | D12: =B12/(Parâmetros!E20)/1000000 -> 6.789355184e-06 | E12: =Projeções!H13+Projeções!H17+Projeções!H25+Projeções!H32 -> 3341514.379 | F12: =E12/((1+Parâmetros!E11)*(1+Parâmetros!F11)) -> 3022805.842 | G12: =E12/(Parâmetros!F20)/1000000 -> 6.775209577e-06 | H12: =Projeções!I13+Projeções!I17+Projeções!I25+Projeções!I32 -> 3642715.831 | I12: =H12/((1+Parâmetros!E11)*(1+Parâmetros!F11)*(1+Parâmetros!G11)) -> 3147954.872 | J12: =H12/(Parâmetros!G20)/1000000 -> 6.778344855e-06
A13: Receitas Primárias RPPS (I) | B13: =B12-Projeções!G17 -> 2113074.24 | C13: =B13/(1+Parâmetros!E11) -> 2004624.077 | D13: =B13/(Parâmetros!E20)/1000000 -> 4.685668269e-06 | E13: =E12-Projeções!H17 -> 2346623.176 | F13: =E13/((1+Parâmetros!E11)*(1+Parâmetros!F11)) -> 2122805.842 | G13: =E13/(Parâmetros!F20)/1000000 -> 4.757981565e-06 | H13: =H12-Projeções!I17 -> 2601263.72 | I13: =H13/((1+Parâmetros!E11)*(1+Parâmetros!F11)*(1+Parâmetros!G11)) -> 2247954.872 | J13: =H13/(Parâmetros!G20)/1000000 -> 4.840416703e-06
A14: Despesa Total RPPS | B14: =Projeções!G43+Projeções!G46+Projeções!G49+Projeções!G53+Projeções!G59 -> 3061934.923 | C14: =B14/(1+Parâmetros!E11) -> 2904786 | D14: =B14/(Parâmetros!E20)/1000000 -> 6.789733667e-06 | E14: =Projeções!H43+Projeções!H46+Projeções!H49+Projeções!H53+Projeções!H59 -> 3341514.379 | F14: =E14/((1+Parâmetros!E11)*(1+Parâmetros!F11)) -> 3022805.842 | G14: =E14/(Parâmetros!F20)/1000000 -> 6.775209577e-06 | H14: =Projeções!I43+Projeções!I46+Projeções!I49+Projeções!I53+Projeções!I59 -> 3642715.831 | I14: =H14/((1+Parâmetros!E11)*(1+Parâmetros!F11)*(1+Parâmetros!G11)) -> 3147954.872 | J14: =H14/(Parâmetros!G20)/1000000 -> 6.778344855e-06
A15: Despesas Primárias RPPS (II) | B15: =B14-Projeções!G46 -> 3061934.923 | C15: =B15/(1+Parâmetros!E11) -> 2904786 | D15: =B15/(Parâmetros!E20)/1000000 -> 6.789733667e-06 | E15: =E14-Projeções!H46 -> 3341514.379 | F15: =E15/((1+Parâmetros!E11)*(1+Parâmetros!F11)) -> 3022805.842 | G15: =E15/(Parâmetros!F20)/1000000 -> 6.775209577e-06 | H15: =H14-Projeções!I46 -> 3642715.831 | I15: =H15/((1+Parâmetros!E11)*(1+Parâmetros!F11)*(1+Parâmetros!G11)) -> 3147954.872 | J15: =H15/(Parâmetros!G20)/1000000 -> 6.778344855e-06
A16: Resultado Primário RPPS (I – II) | B16: =B13-B15 -> -948860.6826 | C16: =C13-C15 -> -900161.9226 | D16: =B16/(Parâmetros!E20)/1000000 -> -2.104065398e-06 | E16: =E13-E15 -> -994891.203 | F16: =F13-F15 -> -900000 | G16: =E16/(Parâmetros!F20)/1000000 -> -2.017228012e-06 | H16: =H13-H15 -> -1041452.111 | I16: =I13-I15 -> -900000 | J16: =H16/(Parâmetros!G20)/1000000 -> -1.937928153e-06

Sheet Metas PREF
A1: =Parâmetros!A7 -> Município de : Paverama
A2: LEI DE DIRETRIZES ORÇAMENTÁRIAS
A3: ANEXO I - METAS FISCAIS
A4: DEMONSTRATIVO DAS METAS DE RESULTADO PRIMÁRIO (EXCLUÍDAS A RECEITAS E DESPESAS DO RPPS)
A5: EXERCÍCIO DE 2017
A7: AMF - Demonstativo I (LRF, art. 4º, § 1º) | H7: 1
A8: ESPECIFICAÇÃO | B8: 2017 | E8: =B8+1 -> 2018 | H8: =E8+1 -> 2019
B9: Valor | C9: Valor | D9: % PIB | E9: Valor | F9: Valor | G9: % PIB | H9: Valor | I9: Valor | J9: % PIB
B10: Corrente | C10: Constante | D10: (a / PIB) | E10: Corrente | F10: Constante | G10: (b / PIB) | H10: Corrente | I10: Constante | J10: (c / PIB)
B11: (a) | D11: x 100 | E11: (b) | G11: x 100 | H11: (c) | J11: x 100
A12: Receita Total | B12: =Metas!B12 - MetasRPPS!B12 -> 20236399.79 | C12: =B12/(1+Parâmetros!E11) -> 19197798.87 | D12: =B12/(Parâmetros!E20)/1000000 -> 4.487350922e-05 | E12: =Metas!E12 - MetasRPPS!E12 -> 22717608.08 | F12: =E12/((1+Parâmetros!E11)*(1+Parâmetros!F11)) -> 20550837.33 | G12: =E12/(Parâmetros!F20)/1000000 -> 4.606191636e-05 | H12: =Metas!H12 - MetasRPPS!H12 -> 24340357.49 | I12: =H12/((1+Parâmetros!E11)*(1+Parâmetros!F11)*(1+Parâmetros!G11)) -> 21034401.39 | J12: =H12/(Parâmetros!G20)/1000000 -> 4.529239847e-05
A13: Receitas Primárias (I) | B13: =Metas!B13 - MetasRPPS!B13 -> 20077536.38 | C13: =B13/(1+Parâmetros!E11) -> 19047088.87 | D13: =B13/(Parâmetros!E20)/1000000 -> 4.452123516e-05 | E13: =Metas!E13 - MetasRPPS!E13 -> 21848465.81 | F13: =E13/((1+Parâmetros!E11)*(1+Parâmetros!F11)) -> 19764592.52 | G13: =E13/(Parâmetros!F20)/1000000 -> 4.42996552e-05 | H13: =Metas!H13 - MetasRPPS!H13 -> 24160385.94 | I13: =H13/((1+Parâmetros!E11)*(1+Parâmetros!F11)*(1+Parâmetros!G11)) -> 20878873.94 | J13: =H13/(Parâmetros!G20)/1000000 -> 4.495750844e-05
A14: Despesa Total | B14: =Metas!B14 - MetasRPPS!B14 -> 20043847.88 | C14: =B14/(1+Parâmetros!E11) -> 19015129.38 | D14: =B14/(Parâmetros!E20)/1000000 -> 4.444653209e-05 | E14: =Metas!E14 - MetasRPPS!E14 -> 22717608.08 | F14: =E14/((1+Parâmetros!E11)*(1+Parâmetros!F11)) -> 20550837.33 | G14: =E14/(Parâmetros!F20)/1000000 -> 4.606191636e-05 | H14: =Metas!H14 - MetasRPPS!H14 -> 24340357.49 | I14: =H14/((1+Parâmetros!E11)*(1+Parâmetros!F11)*(1+Parâmetros!G11)) -> 21034401.39 | J14: =H14/(Parâmetros!G20)/1000000 -> 4.529239847e-05
A15: Despesas Primárias (II) | B15: =Metas!B15 - MetasRPPS!B15 -> 19128281.08 | C15: =B15/(1+Parâmetros!E11) -> 18146552.58 | D15: =B15/(Parâmetros!E20)/1000000 -> 4.24162947e-05 | E15: =Metas!E15 - MetasRPPS!E15 -> 21656060.81 | F15: =E15/((1+Parâmetros!E11)*(1+Parâmetros!F11)) -> 19590538.82 | G15: =E15/(Parâmetros!F20)/1000000 -> 4.390953741e-05 | H15: =Metas!H15 - MetasRPPS!H15 -> 23116562.44 | I15: =H15/((1+Parâmetros!E11)*(1+Parâmetros!F11)*(1+Parâmetros!G11)) -> 19976824.64 | J15: =H15/(Parâmetros!G20)/1000000 -> 4.301516764e-05
A16: Resultado Primário (I – II) | B16: =B13-B15 -> 949255.303 | C16: =C13-C15 -> 900536.2897 | D16: =B16/(Parâmetros!E20)/1000000 -> 2.104940455e-06 | E16: =E13-E15 -> 192404.9985 | F16: =F13-F15 -> 174053.7037 | G16: =E16/(Parâmetros!F20)/1000000 -> 3.901177851e-07 | H16: =H13-H15 -> 1043823.493 | I16: =I13-I15 -> 902049.2955 | J16: =H16/(Parâmetros!G20)/1000000 -> 1.942340805e-06

Sheet Avaliação
A1: =Parâmetros!A7 -> Município de : Paverama
A2: LEI DE DIRETRIZES ORÇAMENTÁRIAS
A3: ANEXO I METAS FISCAIS
A4: DEMONSTRATIVO DA AVALIAÇÃO DO CUMPRIMENTO DAS METAS FISCAIS DO EXERCÍCIO ANTERIOR
A5: EXERCÍCIO DE 2017
A7: AMF - Demonstrativo II (LRF, art. 4º, §2º, inciso I) | F7: 1
A8: ESPECIFICAÇÃO | B8: I-Metas Previstas em | C8: % PIB | D8: II-Metas Realizadas em | E8: % PIB | F8: Variação
B10: 2015 (a) | D10: 2015 (b) | F10: Valor (c) = (b-a) | G10: % (c/a) x 100
A11: Receita Total | B11: =Plano!E58 -> 24835000 | C11: =B11/(Parâmetros!C20)/1000000 -> 6.331455013e-05 | D11: =Plano!E29 -> 20476629.78 | E11: =D11/(Parâmetros!C20)/1000000 -> 5.22032858e-05 | F11: =D11-B11 -> -4358370.22 | G11: =IF(B11=0,"-",(F11/B11)) -> -0.175493063
A12: Receita Primárias (I) | B12: =B11-(Plano!E59+Plano!E60+Plano!E61+Plano!E62) -> 22817200 | C12: =B12/(Parâmetros!C20)/1000000 -> 5.817035447e-05 | D12: =D11-(Plano!E9+Plano!E21+Plano!E22+Plano!E23) -> 19115954.37 | E12: =D12/(Parâmetros!C20)/1000000 -> 4.873436889e-05 | F12: -3701245.63 | G12: =IF(B12=0,"-",(F12/B12)) -> -0.1622129635
A13: Despesa Total | B13: =Plano!E63 -> 24835000 | C13: =B13/(Parâmetros!C20)/1000000 -> 6.331455013e-05 | D13: =Plano!E55 -> 20227375.35 | E13: =D13/(Parâmetros!C20)/1000000 -> 5.156783453e-05 | F13: -4607624.65 | G13: -0.1855294806
A14: Despesa Primárias (II) | B14: =B13-(Plano!E64+Plano!E65+Plano!E66) -> 23882000 | C14: =B14/(Parâmetros!C20)/1000000 -> 6.088496422e-05 | D14: =D13-(Plano!E37+Plano!E48+Plano!E50) -> 19287455.64 | E14: =D14/(Parâmetros!C20)/1000000 -> 4.917159561e-05 | F14: -4594544.36 | G14: -0.1923852424
A15: Resultado Primário (I–II) | B15: =B12-B14 -> -1064800 | C15: =B15/(Parâmetros!C20)/1000000 -> -2.714609744e-06 | D15: =D12-D14 -> -171501.27 | E15: =D15/(Parâmetros!C20)/1000000 -> -4.372267267e-07 | F15: 893298.73 | G15: -0.8389356968
A16: Resultado Nominal | C16: =B16/(Parâmetros!C20)/1000000 -> 0 | D16: =Dívida!C12 -> -328564.23 | E16: =D16/(Parâmetros!C20)/1000000 -> -8.376443089e-07 | F16: -328564.23 | G16: -
A17: Dívida Pública Consolidada | C17: =B17/(Parâmetros!C20)/1000000 -> 0 | D17: =Dívida!C7 -> 189610 | E17: =D17/(Parâmetros!C20)/1000000 -> 4.833932696e-07 | F17: 189610 | G17: -
A18: Dívida Consolidada Líquida | C18: =B18/(Parâmetros!C20)/1000000 -> 0 | D18: =Dívida!C9 -> -1521300.02 | E18: =D18/(Parâmetros!C20)/1000000 -> -3.878414592e-06 | F18: -1521300.02 | G18: -

Sheet Comparação
A1: =Parâmetros!A7 -> Município de : Paverama
A2: LEI DE DIRETRIZES ORÇAMENTÁRIAS
A3: ANEXO I METAS FISCAIS
A4: DEMONSTRATIVO DE METAS FISCAIS ATUAIS COMPARADAS COM AS FIXADAS NOS TRÊS EXERCÍCIOS ANTERIORES
A5: EXERCÍCIO DE 2017
A7: AMF – Demonstrativo III (LRF, art.4º, §2º, inciso II) | L7: 1
A8: ESPECIFICAÇÃO | B8: VALORES A PREÇOS CORRENTES
B9: 2014 | C9: =B9+1 -> 2015 | D9: Variação % | E9: =C9+1 -> 2016 | F9: Variação % | G9: =E9+1 -> 2017 | H9: Variação % | I9: =G9+1 -> 2018 | J9: Variação% | K9: =I9+1 -> 2019 | L9: Variação %
A11: Receita Total | B11: =Plano!D58 -> 20750000 | C11: =Plano!E58 -> 24835000 | D11: =IF(B11=0,"0",(C11/B11)-1) -> 0.1968674699 | E11: =Plano!F58 -> 22140000 | F11: =IF(C11=0,"0",(E11/C11)-1) -> -0.108516207 | G11: =IF(Metas!B12=0,"0",(Metas!B12)) -> 23298164.03 | H11: =IF(E11=0,"0",(G11/E11)-1) -> 0.05231093189 | I11: =IF(Metas!E12=0,"0",(Metas!E12)) -> 26059122.46 | J11: =IF(G11=0,"-",(I11/G11)-1) -> 0.1185054076 | K11: =IF(Metas!H12=0,"0",(Metas!H12)) -> 27983073.32 | L11: =IF(I11=0,"-",(K11/I11)-1) -> 0.07383022446
A12: Receitas Primárias (I) | B12: =B11-(Plano!D59+Plano!D60+Plano!D61+Plano!D62) -> 19979400 | C12: =C11-(Plano!E59+Plano!E60+Plano!E61+Plano!E62) -> 22817200 | D12: 0.1420362974 | E12: =E11-(Plano!F59+Plano!F60+Plano!F61+Plano!F62) -> 20589600 | F12: -0.09762810511 | G12: =IF(Metas!B13=0,"0",(Metas!B13)) -> 22190610.62 | H12: =IF(E12=0,"0",(G12/E12)-1) -> 0.07775821876 | I12: =IF(Metas!E13=0,"0",(Metas!E13)) -> 24195088.99 | J12: =IF(G12=0,"-",(I12/G12)-1) -> 0.0903300229 | K12: =IF(Metas!H13=0,"0",(Metas!H13)) -> 26761649.66 | L12: =IF(I12=0,"-",(K12/I12)-1) -> 0.1060777529
A13: Despesa Total | B13: =Plano!D63 -> 20750000 | C13: =Plano!E63 -> 24835000 | D13: 0.1968674699 | E13: =Plano!F63 -> 22140000 | F13: -0.108516207 | G13: =IF(Metas!B14=0,"0",(Metas!B14)) -> 23105782.81 | H13: 0.04362162627 | I13: =IF(Metas!E14=0,"0",(Metas!E14)) -> 26059122.46 | J13: 0.1278182037 | K13: =IF(Metas!H14=0,"0",(Metas!H14)) -> 27983073.32 | L13: 0.07383022446
A14: Despesas Primárias (II) | B14: =B13-(Plano!D64+Plano!D65+Plano!D66) -> 19680000 | C14: =C13-(Plano!E64+Plano!E65+Plano!E66) -> 23882000 | D14: 0.2135162602 | E14: =E13-(Plano!F64+Plano!F65+Plano!F66) -> 21364000 | F14: -0.1054350557 | G14: =IF(Metas!B15=0,"0",(Metas!B15)) -> 22190216 | H14: 0.03867328219 | I14: =IF(Metas!E15=0,"0",(Metas!E15)) -> 24997575.19 | J14: 0.1265133783 | K14: =IF(Metas!H15=0,"0",(Metas!H15)) -> 26759278.28 | L14: 0.07047495891
A15: Resultado Primário (I – II) | B15: =B12-B14 -> 299400 | C15: =C12-C14 -> -1064800 | D15: -4.556446226 | E15: =E12-E14 -> -774400 | F15: -0.2727272727 | G15: =IF(Metas!B16=0,"0",(Metas!B16)) -> 394.6203594 | H15: -1.000509582 | I15: =IF(Metas!E16=0,"0",(Metas!E16)) -> -802486.2045 | J15: -0.5651 | K15: =IF(Metas!H16=0,"0",(Metas!H16)) -> 2371.381299 | L15: -1.002955043
A16: Resultado Nominal | B16: 835527.52 | C16: 1620469 | D16: 0.9394561654 | E16: 377358 | F16: -0.7671303802 | G16: =IF(Metas!B17=0,"0",(Metas!B17)) -> -484094.1833 | H16: -2.282851254 | I16: =IF(Metas!E17=0,"0",(Metas!E17)) -> 531426.1156 | J16: -2.097774222 | K16: =IF(Metas!H17=0,"0",(Metas!H17)) -> -265919.3493 | L16: -1.500388185
A17: Dívida Pública Consolidada | C17: =' Avaliação'!B17 -> 0 | D17: 0 | F17: 0 | G17: =IF(Metas!B18=0,"0",(Metas!B18)) -> 525000 | H17: 0 | I17: =IF(Metas!E18=0,"0",(Metas!E18)) -> 1050000 | J17: 1 | K17: =IF(Metas!H18=0,"0",(Metas!H18)) -> 700000 | L17: -0.3333333333
A18: Dívida Consolidada Líquida | B18: -1822744 | C18: -1520957 | D18: -0.1655674083 | E18: -960002 | F18: -0.3688171329 | G18: =IF(Metas!B19=0,"0",(Metas!B19)) -> -940094.1833 | H18: -0.02073726583 | I18: =IF(Metas!E19=0,"0",(Metas!E19)) -> -408668.0678 | J18: -0.5652902922 | K18: =IF(Metas!H19=0,"0",(Metas!H19)) -> -674587.417 | L18: 0.6506976449
A20: ESPECIFICAÇÃO | B20: VALORES A PREÇOS CONSTANTES
B21: 2014 | C21: =B21+1 -> 2015 | D21: Variação % | E21: =C21+1 -> 2016 | F21: Variação % | G21: =E21+1 -> 2017 | H21: Variação % | I21: =G21+1 -> 2018 | J21: Variação % | K21: =I21+1 -> 2019 | L21: Variação %
A23: Receita Total | B23: =B11*((1+Parâmetros!C11)*(1+Parâmetros!D11)) -> 24642695.23 | C23: =C11*(1+Parâmetros!D11) -> 26650438.5 | D23: =IF(B23=0,"-",(C23/B23)-1) -> 0.08147417537 | E23: =E11 -> 22140000 | F23: =IF(C23=0,"-",(E23/C23)-1) -> -0.1692444385 | G23: =Metas!C12 -> 22102422.95 | H23: =IF(E23=0,"-",(G23/E23)-1) -> -0.001697247044 | I23: =Metas!F12 -> 23573643.17 | J23: =IF(G23=0,"-",(I23/G23)-1) -> 0.06656375287 | K23: =Metas!I12 -> 24182356.26 | L23: =IF(I23=0,"-",(K23/I23)-1) -> 0.02582176582
A24: Receitas Primárias (I) | B24: =B12*((1+Parâmetros!C11)*(1+Parâmetros!D11)) -> 23727530.84 | C24: =C12*(1+Parâmetros!D11) -> 24485137.32 | D24: =IF(B24=0,"-",(C24/B24)-1) -> 0.03192942747 | E24: =E12 -> 20589600 | F24: =IF(C24=0,"-",(E24/C24)-1) -> -0.1590980385 | G24: =Metas!C13 -> 21051712.95 | H24: =IF(E24=0,"-",(G24/E24)-1) -> 0.02244399845 | I24: =Metas!F13 -> 21887398.36 | J24: =IF(G24=0,"-",(I24/G24)-1) -> 0.03969678927 | K24: =Metas!I13 -> 23126828.81 | L24: =IF(I24=0,"-",(K24/I24)-1) -> 0.05662758203
A25: Despesa Total | B25: =B13*((1+Parâmetros!C11)*(1+Parâmetros!D11)) -> 24642695.23 | C25: =C13*(1+Parâmetros!D11) -> 26650438.5 | D25: 0.08147417537 | E25: =E13 -> 22140000 | F25: =IF(C25=0,"-",(E25/C25)-1) -> -0.1692444385 | G25: =Metas!C14 -> 21919915.38 | H25: -0.009940587924 | I25: =Metas!F14 -> 23573643.17 | J25: 0.0754440771 | K25: =Metas!I14 -> 24182356.26 | L25: 0.02582176582
A26: Despesas Primárias (II) | B26: =B14*((1+Parâmetros!C11)*(1+Parâmetros!D11)) -> 23371963.47 | C26: =C14*(1+Parâmetros!D11) -> 25627774.2 | D26: 0.09651780985 | E26: =E14 -> 21364000 | F26: -0.1663731765 | G26: =Metas!C15 -> 21051338.58 | H26: -0.01463496614 | I26: =Metas!F15 -> 22613344.66 | J26: 0.07419984577 | K26: =Metas!I15 -> 23124779.51 | L26: 0.02261650641
A27: Resultado Primário (I – II) | B27: =B24-B26 -> 355567.3711 | C27: =C24-C26 -> -1142636.88 | D27: -4.213559434 | E27: =E24-E26 -> -774400 | F27: -0.322269381 | G27: =Metas!C16 -> 374.3670993 | H27: -1.000483429 | I27: =Metas!F16 -> -725946.2963 | J27: 0.4546 | K27: =Metas!I16 -> 2049.295542 | L27: -1.00282293
A28: Resultado Nominal | B28: =B16*((1+Parâmetros!C11)*(1+Parâmetros!D11)) -> 992272.2906 | C28: =C16*(1+Parâmetros!D11) -> 1738925.284 | D28: 0.7524678462 | E28: =E16 -> 377358 | F28: -0.7829935515 | G28: =Metas!C17 -> -459248.8221 | H28: -2.217010961 | I28: =Metas!F17 -> 480739.5045 | J28: -2.046795291 | K28: =Metas!I17 -> -229801.6507 | L28: -1.47801699
A29: Dívida Pública Consolidada | B29: =B17*((1+Parâmetros!C11)*(1+Parâmetros!D11)) -> 0 | C29: =C17*(1+Parâmetros!D11) -> 0 | D29: - | E29: =E17 -> 0 | F29: - | G29: =Metas!C18 -> 498055.213 | H29: - | I29: =Metas!F18 -> 949852.6041 | J29: 0.9071231048 | K29: =Metas!I18 -> 604924.5982 | L29: -0.3631384537
A30: Dívida Consolidada Líquida | B30: =B18*((1+Parâmetros!C11)*(1+Parâmetros!D11)) -> -2164690.355 | C30: =C18*(1+Parâmetros!D11) -> -1632138.957 | D30: -0.2460173563 | E30: =E18 -> -960002 | F30: -0.4118135615 | G30: =Metas!C19 -> -891845.3499 | H30: -0.07099636261 | I30: =IF(Metas!F19=0,"0",(Metas!F19)) -> -369689.9318 | J30: -0.5854775362 | K30: =IF(Metas!I19=0,"0",(Metas!I19)) -> -582963.6032 | L30: 0.5768987819

Sheet Patrimônio
A1: =Parâmetros!A7 -> Município de : Paverama
A2: LEI DE DIRETRIZES ORÇAMENTÁRIAS
A3: ANEXO I - METAS FISCAIS
A4: DEMONSTRATIVO DA EVOLUÇÃO DO PATRIMÔNIO LÍQUIDO
A5: EXERCÍCIO DE 2017
A7: AMF - Demonstrativo IV (LRF, art.4º, §2º, inciso III) | G7: 1
A8: PATRIMÔNIO LÍQUIDO | B8: 2015 | C8: % | D8: =B8-1 -> 2014 | E8: % | F8: =D8-1 -> 2013 | G8: %
A9: Patrimônio/Capital | B9: 11684185.47 | C9: =IF(B12=0,"-",(B9/B12)) -> 1 | D9: 7231865.53 | E9: =IF(D12=0,"-",(D9/D12)) -> 1 | F9: 5038827.3 | G9: =IF(F12=0,"-",(F9/F12)) -> 1
A10: Reservas | C10: =IF(B12=0,"-",(B10/B12)) -> 0 | E10: =IF(D12=0,"-",(D10/D12)) -> 0 | G10: =IF(F12=0,"-",(F10/F12)) -> 0
A11: Resultado Acumulado | C11: =IF(B12=0,"-",(B11/B12)) -> 0 | E11: =IF(D12=0,"-",(D11/D12)) -> 0 | G11: =IF(F12=0,"-",(F11/F12)) -> 0
A12: TOTAL | B12: =SUM(B9:B11) -> 11684185.47 | C12: =IF(B12=0,"-",(B12/B12)) -> 1 | D12: =SUM(D9:D11) -> 7231865.53 | E12: =IF(D12=0,"-",(D12/D12)) -> 1 | F12: =SUM(F9:F11) -> 5038827.3 | G12: =IF(F12=0,"-",(F12/F12)) -> 1
A14: REGIME PREVIDENCIÁRIO
A15: PATRIMÔNIO LÍQUIDO | B15: 2015 | C15: % | D15: =B15-1 -> 2014 | E15: % | F15: =D15-1 -> 2013 | G15: %
A16: Patrimônio/Capital | B16: 6740915.04 | C16: =IF(B19=0,"-",(B16/B19)) -> 1 | D16: 6160503.12 | E16: =IF(D19=0,"-",(D16/D19)) -> 1 | F16: 6160503.12 | G16: =IF(F19=0,"-",(F16/F19)) -> 1
A17: Reservas | C17: =IF(B19=0,"-",(B17/B19)) -> 0 | E17: =IF(D19=0,"-",(D17/D19)) -> 0 | G17: =IF(F19=0,"-",(F17/F19)) -> 0
A18: Resultado Acumulado | C18: =IF(B19=0,"-",(B18/B19)) -> 0 | E18: =IF(D19=0,"-",(D18/D19)) -> 0 | G18: =IF(F19=0,"-",(F18/F19)) -> 0
A19: TOTAL | B19: =SUM(B16:B18) -> 6740915.04 | C19: =IF(B19=0,"-",(B19/B19)) -> 1 | D19: =SUM(D16:D18) -> 6160503.12 | E19: =IF(D19=0,"-",(D19/D19)) -> 1 | F19: =SUM(F16:F18) -> 6160503.12 | G19: =IF(F19=0,"-",(F19/F19)) -> 1
A21: CONSOLIDAÇÃO GERAL
A22: PATRIMÔNIO LÍQUIDO | B22: 2015 | C22: % | D22: =B22-1 -> 2014 | E22: % | F22: =D22-1 -> 2013 | G22: %
A23: Patrimônio/Capital | B23: =B9+B16 -> 18425100.51 | C23: =IF(B26=0,"-",(B23/B26)) -> 1 | D23: =D9+D16 -> 13392368.65 | E23: =IF(D26=0,"-",(D23/D26)) -> 1 | F23: =F9+F16 -> 11199330.42 | G23: =IF(F26=0,"-",(F23/F26)) -> 1
A24: Reservas | B24: =B10+B17 -> 0 | C24: =IF(B26=0,"-",(B24/B26)) -> 0 | D24: =D10+D17 -> 0 | E24: =IF(D26=0,"-",(D24/D26)) -> 0 | F24: =F10+F17 -> 0 | G24: =IF(F26=0,"-",(F24/F26)) -> 0
A25: Resultado Acumulado | B25: =B11+B18 -> 0 | C25: =IF(B26=0,"-",(B25/B26)) -> 0 | D25: =D11+D18 -> 0 | E25: =IF(D26=0,"-",(D25/D26)) -> 0 | F25: =F11+F18 -> 0 | G25: =IF(F26=0,"-",(F25/F26)) -> 0
A26: TOTAL | B26: =SUM(B23:B25) -> 18425100.51 | C26: =IF(B26=0,"-",(B26/B26)) -> 1 | D26: =SUM(D23:D25) -> 13392368.65 | E26: =IF(D26=0,"-",(D26/D26)) -> 1 | F26: =SUM(F23:F25) -> 11199330.42 | G26: =IF(F26=0,"-",(F26/F26)) -> 1

Sheet Alienação
A1: =Parâmetros!A7 -> Município de : Paverama
A2: LEI DE DIRETRIZES ORÇAMENTÁRIAS
A3: ANEXO I - METAS FISCAIS
A4: DEMONSTRATIVO DA ORIGEM E APLICAÇÃO DOS RECURSOS OBTIDOS COM A ALIENAÇÃO DE ATIVOS
A5: EXERCÍCIO DE 2017
A7: AMF - Demonstrativo V (LRF, art.4º, §2º, inciso III) | D7: 1
A8: RECEITAS REALIZADAS | B8: 2015 | C8: =B8-1 -> 2014 | D8: =C8-1 -> 2013
A9: SALDOS DE EXERCÍCIOS ANTERIORES A 2013 | C9: 502.09 | D9: 483.22
A10: RECEITAS DE CAPITAL | B10: =B11 -> 73000 | C10: =C11 -> 218220 | D10: =D11 -> 0
A11: ALIENAÇÃO DE ATIVOS | B11: =B12+B13 -> 73000 | C11: =C12+C13 -> 218220 | D11: =D12+D13 -> 0
A12: Alienação de Bens Móveis | B12: 73000 | C12: 218220
A13: Alienação de Bens Imóveis
A14: Rendimento de Aplicações Financeira de Alienaç de Bens | B14: 255.57 | C14: 491.76 | D14: 18.87
A15: TOTAL | B15: =B12+B13+B14 -> 73255.57 | C15: =C12+C13+C14 -> 218711.76 | D15: =D9+D12+D13+D14 -> 502.09
A17: DESPESAS EXECUTADAS | B17: 2015 | C17: =B17-1 -> 2014 | D17: =C17-1 -> 2013
A19: APLICAÇÃO DOS RECURSOS DA ALIENAÇÃO DE ATIVOS
A20: DESPESAS DE CAPITAL | B20: =B21+B22+B23 -> 58430.26 | C20: =C21+C22+C23 -> 205354.23 | D20: =D21+D22+D23 -> 0
A21: Investimentos | B21: 58430.26 | C21: 81962.2
A22: Inversões Financeiras | C22: 123392.03
A23: Amortização da Dívida
A24: DESPESAS CORRENTES DOS REGIMES DE PREVID. | B24: =B25+B26 -> 0 | C24: =C25+C26 -> 0 | D24: =D25+D26 -> 0
A25: Regime Geral de Previdência Social
A26: Regime Próprio dos Servidores Públicos
A27: TOTAL | B27: =B20+B24 -> 58430.26 | C27: =C20+C24 -> 205354.23 | D27: =D20+D24 -> 0
A28: SALDO FINANCEIRO
B29: =C29+B15-B27 -> 28684.93 | C29: =D29+C15-C27 -> 13859.62 | D29: =D15-D27 -> 502.09

Sheet RPPS-Financeiro
A1: =Parâmetros!A7 -> Município de : Paverama
A2: LEI DE DIRETRIZES ORÇAMENTÁRIAS
A3: ANEXO DE METAS FISCAIS
A4: RECEITAS E DESPESAS PREVIDENCIÁRIAS DO REGIME PRÓPRIO DE PREVIDÊNCIA DOS SERVIDORES
A5: EXERCÍCIO DE 2017
A7: AMF - Demonstrativo VI (LRF, art.4º, §2º, inciso IV, alínea "a") | G7: 1
A8: RECEITAS | E8: 2013 | F8: =E8+1 -> 2014 | G8: =F8+1 -> 2015
A10: RECEITAS PREVIDENCIÁRIAS - RPPS (EXCETO INTRA-ORÇAMENTÁRIAS) (I) | E10: =E11+E21+E25 -> -126732.68 | F10: =F11+F21+F25 -> 1614138.53 | G10: =G11+G21+G25 -> 1221047.03
A11: RECEITAS CORRENTES | E11: =E12+E15+E16+E17+E18 -> -126732.68 | F11: =F12+F15+F16+F17+F18 -> 1614138.53 | G11: =G12+G15+G16+G17+G18 -> 1221047.03
A12: Receita de Contribuições dos Segurados | E12: =E13+E14 -> 387404.32 | F12: =F13+F14 -> 438948.16 | G12: =G13+G14 -> 466252.67
A13: Pessoal Civil | E13: 387404.32 | F13: 438948.16 | G13: 466252.67
A14: Pessoal Militar
A15: Outras Receitas de Contribuições
A16: Receita Patrimonial | E16: -514137 | F16: 983426.11 | G16: 694351.69
A17: Receita de Serviços
A18: Outras Receitas Correntes | E18: =E19+E20 -> 0 | F18: 191764.26 | G18: 60442.67
A19: Compensação Previdenciária do RGPS para o RPPS
A20: Outras Receitas Correntes
A21: RECEITAS DE CAPITAL | E21: =E22+E23+E24 -> 0 | F21: =F22+F23+F24 -> 0 | G21: =G22+G23+G24 -> 0
A22: Alienação de Bens, Direitos e Ativos
A23: Amortização de Empréstimos
A24: Outras Receitas de Capital
A25: (–) DEDUÇÕES DA RECEITA
A26: RECEITAS PREVIDENCIÁRIAS - RPPS (INTRA-ORÇAMENTÁRIAS) (II) | E26: =E27+E37+E38 -> 877002.32 | F26: =F27+F37+F38 -> 1053918.55 | G26: =G27+G37+G38 -> 1182049.22
A27: RECEITAS CORRENTES | E27: =E28+E34+E35+E36 -> 877002.32 | F27: =F28+F34+F35+F36 -> 1053918.55 | G27: =G28+G34+G35+G36 -> 1182049.22
A28: Receita de Contribuições | E28: =E29+E32+E33 -> 877002.32 | F28: =F29+F32+F33 -> 1053918.55 | G28: =G29+G32+G33 -> 1182049.22
A29: Patronal | E29: =E30+E31 -> 877002.32 | F29: =F30+F31 -> 1053918.55 | G29: =G30+G31 -> 1182049.22
A30: Pessoal Civil | E30: 877002.32 | F30: 1053918.55 | G30: 1182049.22
A31: Pessoal Militar
A32: Cobertura de Déficit Atuarial
A33: Regime de Débitos e Parcelamentos
A34: Receita Patrimonial
A35: Receita de Serviços
A36: Outras Receitas Correntes
A37: RECEITAS DE CAPITAL
A38: (–) DEDUÇÕES DA RECEITA
A39: TOTAL DAS RECEITAS PREVIDENCIÁRIAS (III) = (I + II) | E39: =E10+E26 -> 750269.64 | F39: =F10+F26 -> 2668057.08 | G39: =G10+G26 -> 2403096.25
A41: DESPESAS | E41: 2013 | F41: =E41+1 -> 2014 | G41: =F41+1 -> 2015
A43: DESPESAS PREVIDENCIÁRIAS - RPPS (EXCETO INTRA-ORÇAMENTÁRIAS) (IV) | E43: =E44+E47 -> 926107.95 | F43: =F44+F47 -> 1099939.03 | G43: =G44+G47 -> 1426582.6
A44: ADMINISTRAÇÃO | E44: =E45+E46 -> 19778.31 | F44: =F45+F46 -> 8447.32 | G44: =G45+G46 -> 16887.96
A45: Despesas Correntes | E45: 19778.31 | F45: 8447.32 | G45: 16887.96
A46: Despesas de Capital
A47: PREVIDÊNCIA | E47: =E48+E49+E50 -> 906329.64 | F47: =F48+F49+F50 -> 1091491.71 | G47: =G48+G49+G50 -> 1409694.64
A48: Pessoal Civil | E48: 906329.64 | F48: 1091491.71 | G48: 1409694.64
A49: Pessoal Militar
A50: Outras Despesas Previdenciárias | E50: =E51+E52 -> 0 | F50: =F51+F52 -> 0 | G50: =G51+G52 -> 0
A51: Compensação Previdenciária do RPPS para o RGPS
A52: Demais Despesas Previdenciárias
A53: DESPESAS PREVIDENCIÁRIAS - RPPS (INTRA-ORÇAMENTÁRIAS) (V) | E53: =E54 -> 0 | F53: =F54 -> 0 | G53: =G54 -> 0
A54: ADMINISTRAÇÃO | E54: =E55+E56 -> 0 | F54: =F55+F56 -> 0 | G54: =G55+G56 -> 0
A55: Despesas Correntes
A56: Despesas de Capital
A57: TOTAL DAS DESPESAS PREVIDENCIÁRIAS (VI) = (IV + V) | E57: =E43+E53 -> 926107.95 | F57: =F43+F53 -> 1099939.03 | G57: =G43+G53 -> 1426582.6
A59: RESULTADO PREVIDENCIÁRIO (VII) = (III – VI) | E59: -175838.31 | F59: 1568118.05 | G59: =G39-G57 -> 976513.65
A61: APORTES DE RECURSOS PARA O REGIME PRÓPRIO DE PREVIDÊNCIA DO SERVIDOR | E61: 2013 | F61: =E61+1 -> 2014 | G61: =F61+1 -> 2015
A63: TOTAL DOS APORTES PARA O RPPS | E63: =E64+E68 -> 0 | F63: =F64+F68 -> 0 | G63: =G64+G68 -> 0
A64: Plano Financeiro | E64: =E65+E66+E67 -> 0 | F64: =F65+F66+F67 -> 0 | G64: =G65+G66+G67 -> 0
A65: Recursos para Cobertura de Insuficiências Financeiras
A66: Recursos para Formação de Reserva
A67: Outros Aportes para o RPPS
A68: Plano Previdenciário | E68: =E69+E70+E71 -> 0 | F68: =F69+F70+F71 -> 0 | G68: =G69+G70+G71 -> 0
A69: Recursos para Cobertura de Déficit Financeiro
A70: Recursos para Cobertura de Déficit Atuarial
A71: Outros Aportes para o RPPS
A73: RESERVA ORÇAMENTÁRIA DO RPPS
A74: BENS E DIREITOS DO RPPS | E74: 7199161.35 | F74: 8767279.4 | G74: 9744686.12

Sheet RPPS-Atuarial
A1: =Parâmetros!A7 -> Município de : Paverama
A2: LEI DE DIRETRIZES ORÇAMENTÁRIAS
A3: ANEXO DE METAS FISCAIS
A4: PROJEÇÃO ATUARIAL DO RPPS
A5: Exercíocio de 2017
A7: AMF – Tabela 7 (LRF, art.4º, § 2º, inciso IV, alínea “a”) | G7: 1
A8: EXERCÍCIO | B8: RECEITAS PREVIDENCIÁRIAS | D8: DESPESAS PREVIDENCIÁRIAS | E8: RESULTADO PREVIDENCIÁRIO | G8: SALDO FINANCEIRO
G9: DO EXERCÍCIO
B10: (a) | D10: (b) | E10: (c) = (a-b) | G10: (d) = (d Exercício
G11: anterior) + (c)
A12: 2016 | B12: 3062897.27 | D12: 1220827.5 | E12: =B12-D12 -> 1842069.77 | G12: 12174434.14
A13: 2017 | B13: 3098697.49 | D13: 1269364.63 | E13: 1829332.86 | G13: =G12+E13 -> 14003767
A14: 2018 | B14: 3150110.2 | D14: 1396912.05 | E14: 1753198.15 | G14: =G13+E14 -> 15756965.15
A15: 2019 | B15: 3205955.98 | D15: 1527782 | E15: 1678173.98 | G15: =G14+E15 -> 17435139.13
A16: 2020 | B16: 3333123.66 | D16: 1682064.18 | E16: 1651059.48 | G16: =G15+E16 -> 19086198.61
A17: 2021 | B17: 3462807.02 | D17: 1698252.95 | E17: 1764554.07 | G17: =G16+E17 -> 20850752.68
A18: . . .
A19: . . .
A22: Fonte: Nota Técnica Atuarial nº 2863/15 elaborada por CSM Consultoria e Seguridade Municipal S/S em Abril/2015.

Sheet Renúncia
A1: =Parâmetros!A7 -> Município de : Paverama
A2: LEI DE DIRETRIZES ORÇAMENTÁRIAS
A3: ANEXO I - METAS FISCAIS
A4: DEMONSTRATIVO DA ESTIMATIVA E COMPENSAÇÃO DA RENÚNCIA DE RECEITA
A5: EXERCÍCIO DE 2017
A7: AMF - Demonstrativo VIII (LRF, art. 4°, § 2°, inciso V) | G7: 1
A8: TRIBUTO | B8: MODALIDADE | C8: SETORES/ PROGRAMAS/ BENEFICIÁRIO | D8: RENÚNCIA DE RECEITA PREVISTA | G8: COMPENSAÇÃO
D10: 2017 | E10: =D10+1 -> 2018 | F10: =E10+1 -> 2019
A11: IPTU E TAXAS | B11: Desconto | C11: População | D11: 100000 | E11: =D11*(1+B24) -> 104870 | F11: =E11*(1+B25) -> 109777.916 | G11: Desconto Pagamento a Vista IPTU e Taxas
E12: =D12*(1+B24) -> 0 | F12: =E12*(1+B25) -> 0
E13: =D13*(1+B24) -> 0 | F13: =E13*(1+B25) -> 0
E14: =D14*(1+B24) -> 0 | F14: =E14*(1+B25) -> 0
E15: =D15*(1+B24) -> 0 | F15: =E15*(1+B25) -> 0
E16: =D16*(1+B24) -> 0 | F16: =E16*(1+B25) -> 0
E17: =D17*(1+B24) -> 0 | F17: =E17*(1+B25) -> 0
A18: TOTAL | D18: =SUM(D11:D17) -> 100000 | E18: =SUM(E11:E17) -> 104870 | F18: =SUM(F11:F17) -> 109777.916 | G18: -
A19: F
A20: Obs: 1 - Os valores da renúncia para 2017 foram previstos de acordo com informações do setor tributário
A21: da Prefeitura Municipal
A22: 2 - Os valores da renúncia projetados para 2018 e 2019, foram claculados a partir dos valores de 2017, apli
A23: cando-se, sobre eles, as projeções de inflação para os referidos exercícios a saber:
A24: Inflação para 2018: | B24: =Parâmetros!F11 -> 0.0487
A25: Inflação para 2019: | B25: =Parâmetros!G11 -> 0.0468

Sheet DOCC
A1: =Parâmetros!A7 -> Município de : Paverama
A2: LEI DE DIRETRIZES ORÇAMENTÁRIAS
A3: ANEXO I - METAS FISCAIS
A4: DEMONSTRATIVO DA MARGEM DE EXPANSÃO DAS DESPESAS OBRIGATÓRIAS DE CARÁTER CONTINUADO
A5: EXERCÍCIO DE 2017
A7: AMF - Demonstrativo IX (LRF, art. 4°, § 2°, inciso V) | B7: 1
A8: EVENTO | B8: Valor Previsto 2017
A9: Aumento Permanente da Receita | B9: =(B10+B11) -> 1148517.864
A10: Decorrente de Receitas Tributárias | B10: =(Projeções!G10)/(1+Parâmetros!E11)-Projeções!F10 -> 257667.707
A11: Decorrente de Transferências Correntes | B11: =Projeções!G22/(1+Parâmetros!E11)-Projeções!F22 -> 890850.1565
A12: (-) Transferências Constitucionais | B12: 0
A13: (-) Transferências ao FUNDEB | B13: =Projeções!G33/(1+Parâmetros!E11)-Projeções!F33 -> -36237.22
A14: Saldo Final do Aumento Permanente de Receita (I) | B14: =B9+B13 -> 1112280.644
A15: Redução Permanente de Despesa (II) | B15: 0
A16: Margem Bruta (III) = (I+II) | B16: =B14+B15 -> 1112280.644
A17: Saldo Utilizado da Margem Bruta (IV)
A18: Novas DOCC | B18: =B19+B20 -> 738606.7736
A19: Relativas a Pessoal e Encargos Sociais | B19: =Projeções!G41/(1+Parâmetros!E11)-Projeções!F41 -> 427500.351
A20: Relativas a Outras Despesas Correntes | B20: =Projeções!G47/(1+Parâmetros!E11)-Projeções!F47 -> 311106.4225
A21: Novas DOCC geradas por PPP | B21: 0
A22: Margem Líquida de Expansão de DOCC (V) = (III-IV) | B22: =IF(B16-B17-B18<0,"SEM MARGEM",B16-B17-B18) -> 373673.87

Sheet DOCC(alternativa)
A1: =Parâmetros!A7 -> Município de : Paverama
A2: LEI DE DIRETRIZES ORÇAMENTÁRIAS
A3: ANEXO I - METAS FISCAIS
A4: DEMONSTRATIVO DA MARGEM DE EXPANSÃO DAS DESPESAS OBRIGATÓRIAS DE CARÁTER CONTINUADO
A5: EXERCÍCIO DE 2017
A7: AMF - Demonstrativo IX (LRF, art. 4°, § 2°, inciso V) | B7: 1
A8: EVENTO | B8: Valor Previsto 2017
A9: Aumento Permanente da Receita
A10: Decorrente de Receitas Tributárias
A11: Decorrente de Transferências Correntes
A12: (-) Transferências ao FUNDEB
A13: Saldo Final do Aumento Permanente de Receita (I)
A14: Redução Permanente de Despesa (II)
A15: Margem Bruta (III) = (I+II)
A16: Saldo Utilizado da Margem Bruta (IV)
A17: Impacto de Novas DOCC
A18: Relativas a Pessoal e Encargos Sociais
A19: Relativas a Outras Despesas Correntes
A20: Margem Líquida de Expansão de DOCC (III-IV) | B20: =IF(B15-B16-B17<0,"SEM MARGEM",B15-B16-B17) -> 0
A21: Fonte:

Sheet Anexo Riscos
A1: =Parâmetros!A7 -> Município de : Paverama
A2: LEI DE DIRETRIZES ORÇAMENTÁRIAS
A3: ANEXO DE RISCOS FISCAIS
A4: DEMONSTRATIVO DE RISCOS FISCAIS E PROVIDÊNCIAS
A5: EXERCÍCIO DE 2017
A7: ARF (LRF, art 4o, § 3o) | C7: 1
A8: PASSIVOS CONTINGENTES | C8: PROVIDÊNCIAS
A9: Descrição | B9: Valor | C9: Descrição | D9: Valor
A10: Demandas Judiciais
A11: Dívidas em Processo de Reconhecimento
A12: Avais e Garantias Concedidas
A13: Assunção de Passivos
A14: Assistências Diversas
A15: Outros Passivos Contingentes
A16: SUBTOTAL | B16: =SUM(B10:B15) -> 0 | C16: SUBTOTAL | D16: =SUM(D10:D15) -> 0
A18: DEMAIS RISCOS FISCAIS PASSIVOS | C18: PROVIDÊNCIAS
A19: Descrição | B19: Valor | C19: Descrição | D19: Valor
A20: Frustração de Arrecadação
A21: Restituição de Tributos a Maior
A22: Discrepância de Projeções:
A23: Outros Riscos Fiscais
A24: SUBTOTAL | B24: =SUM(B20:B23) -> 0 | C24: SUBTOTAL | D24: =SUM(D20:D23) -> 0
A25: TOTAL | B25: =B16+B24 -> 0 | C25: TOTAL | D25: =D16+D24 -> 0

Sheet Anexo III - Metas e Prioridades
A1: LEI DE DIRETRIZES ORÇAMENTÁRIAS – 2017
A2: ANEXO III - METAS E PRIORIDADES
A4: PROGRAMA:
A5: OBJETIVO:
A7: TIPO (*) | B7: Ação | C7: Unidade de Medida
E8: 2017
B9: Produto
D10: Meta Física
D11: Valor
D12: Meta Física
D13: Valor
D14: Meta Física
D15: Valor
D16: Meta Física
D17: Valor
D18: Meta Física
D19: Valor
D20: Meta Física
D21: Valor
D22: Meta Física
D23: Valor
D24: Meta Física
D25: Valor
D26: Meta Física
D27: Valor
D28: Meta Física
D29: Valor
D30: Meta Física
D31: Valor
D32: Meta Física
D33: Valor
A34: TOTAL DO PROGRAMA =======================================è
A35: (*) Tipo: P – Projeto A - Atividade | B35: OE – Operação Especial NO – Não-orçamentária

Sheet Anexo IV - Consdo Patrimônio
A1: MUNICÍPIO DE:
A3: LEI DE DIRETRIZES ORÇAMENTÁRIAS - 2017
A4: ANEXO IV
A5: RELATÓRIO SOBRE PROJETOS EM EXECUÇÃO E A EXECUTAR E DESPESAS COM CONSERVAÇÃO DO PATRIMÔNIO PÚBLICO
A6: (Art. 45 da LRF)
E7: EXECUÇÃO % | H7: RECURSOS PRIORIZADOS PARA 2017
A8: IDENTIFICAÇÃO DAS AÇÕES | C8: INÍCIO DA EXECUÇÃO | D8: VALOR DO PROJETO | E8: ATÉ EXERC ANTERIOR - 2015 | F8: NO EXERCÍCIO DE 2016 | G8: A EXECUTAR EM 2017 | H8: PROJETOS EM EXECUÇÃO | I8: CONSERVAÇÃO DO PATRIMÔNIO | L8: NOVOS PROJETOS
A27: Total dos Recursos a Priorizar | H27: =SUM(H10:H26) -> 0 | I27: 0 | L27: =SUM(L10:L26) -> 0
